{"text_format":"1","workbook":"xlsx","n_sheets":4,"sheets":["AANVRAAG","PROCEDURE","EVALUATIE","BRON"],"not_rendered":{"charts":0,"images":12,"macros":1,"external_links":2,"defined_names":40,"comments":0,"pivot_tables":0},"unopened":[],"bounds":{"document_bytes":16777216,"sheet_cells":100000,"rows_first":2000,"rows_last":500,"rows_between":2000,"halvings":0,"cell_chars":16384,"cell_head_chars":4096},"cells_cut":0,"cells_raw":0,"read":"whole","date_system":"1900"}

{"sheet":"AANVRAAG","index":0,"n_rows":537,"n_cols":27,"rows_kept":537,"cut":false,"hidden":false,"merged":[[462,26,483,26],[79,8,79,23],[78,1,78,23],[429,1,429,23],[432,1,432,23],[331,22,331,23],[284,22,284,23],[167,5,167,23],[155,1,155,23],[112,1,112,23],[336,19,336,23],[376,19,376,23],[256,3,256,18],[296,3,296,18],[336,3,336,18],[376,3,376,18],[290,1,290,21],[342,1,342,2],[342,3,342,13],[342,14,342,23],[343,3,343,21],[324,22,324,23],[326,1,326,21],[326,22,326,23],[329,22,329,23],[330,1,330,21],[298,1,298,2],[298,3,298,23],[337,3,337,23],[440,22,440,23],[428,1,428,15],[428,22,428,23],[424,1,424,15],[425,1,425,15],[426,1,426,15],[430,1,430,23],[435,1,435,23],[436,1,436,23],[437,1,437,23],[439,3,439,23],[340,1,340,22],[338,1,338,2],[350,1,350,23],[341,1,341,4],[341,5,341,21],[328,1,328,21],[328,22,328,23],[349,1,349,23],[263,1,263,2],[278,1,278,21],[274,1,274,23],[275,1,275,23],[276,1,276,23],[263,3,263,21],[270,1,270,23],[271,1,271,23],[268,1,268,23],[267,1,267,23],[278,22,278,23],[265,1,265,23],[266,1,266,23],[277,1,277,23],[280,1,280,21],[281,22,281,23],[286,22,286,23],[283,22,283,23],[282,1,282,21],[325,22,325,23],[304,1,304,23],[303,3,303,21],[280,22,280,23],[287,1,287,21],[293,1,293,21],[299,1,299,2],[299,3,299,23],[292,1,292,21],[303,1,303,2],[297,1,297,2],[297,3,297,23],[292,22,292,23],[303,22,303,23],[282,22,282,23],[381,1,381,4],[381,5,381,21],[369,22,369,23],[295,1,295,23],[294,1,294,21],[294,22,294,23],[287,22,287,23],[288,1,288,21],[288,22,288,23],[322,1,322,21],[322,22,322,23],[339,1,339,2],[339,3,339,23],[331,1,331,21],[290,22,290,23],[289,22,289,23],[289,1,289,21],[330,22,330,23],[291,1,291,21],[291,22,291,23],[317,1,317,23],[293,22,293,23],[296,1,296,2],[325,1,325,21],[538,0,538,23],[537,1,537,23],[520,1,520,22],[518,1,518,23],[512,1,512,23],[511,1,511,23],[510,1,510,23],[494,1,494,23],[488,1,488,23],[490,1,490,22],[530,1,530,23],[495,1,495,23],[497,1,497,23],[522,1,522,23],[523,1,523,23],[524,1,524,22],[515,1,515,23],[534,1,534,12],[534,14,534,22],[529,1,529,22],[531,2,531,3],[531,7,531,9],[531,13,531,14],[535,1,535,12],[167,1,167,4],[221,1,221,4],[221,5,221,21],[412,1,412,21],[411,1,411,21],[407,1,407,21],[402,1,402,21],[401,1,401,21],[400,1,400,21],[394,1,394,23],[391,1,391,23],[390,1,390,23],[402,22,402,23],[410,22,410,23],[411,22,411,23],[412,22,412,23],[382,14,382,23],[375,1,375,23],[189,1,189,23],[207,1,207,21],[311,1,311,23],[310,1,310,23],[264,1,264,23],[269,1,269,23],[190,1,190,21],[191,1,191,21],[192,1,192,21],[410,1,410,21],[389,1,389,23],[388,1,388,23],[387,1,387,23],[386,1,386,23],[385,1,385,23],[379,3,379,23],[352,1,352,23],[351,1,351,23],[380,1,380,22],[373,1,373,21],[370,1,370,21],[370,22,370,23],[363,1,363,21],[358,1,358,21],[358,22,358,23],[198,22,198,23],[199,1,199,21],[220,1,220,22],[222,1,222,2],[234,1,234,23],[195,22,195,23],[203,22,203,23],[201,1,201,21],[203,1,203,21],[204,1,204,21],[210,1,210,21],[197,22,197,23],[195,1,195,21],[197,1,197,21],[210,22,210,23],[256,1,256,2],[332,1,332,21],[413,22,413,23],[420,16,420,20],[423,22,423,23],[424,22,424,23],[423,1,423,15],[428,16,428,20],[366,22,366,23],[367,1,367,21],[365,1,365,21],[365,22,365,23],[366,1,366,21],[367,22,367,23],[368,1,368,21],[423,16,423,20],[424,16,424,20],[413,1,413,21],[426,16,426,20],[302,1,302,2],[425,16,425,20],[421,16,421,20],[422,16,422,20],[422,1,422,15],[95,1,95,2],[162,3,162,23],[107,1,107,23],[98,1,98,2],[99,3,99,23],[86,3,86,23],[87,1,87,2],[87,3,87,23],[88,1,88,2],[88,3,88,23],[97,1,97,2],[97,3,97,23],[98,3,98,23],[95,3,95,23],[96,1,96,2],[96,3,96,23],[94,1,94,23],[99,1,99,2],[91,1,91,2],[110,1,110,23],[113,0,113,23],[145,1,145,23],[102,3,102,23],[103,1,103,2],[54,1,54,23],[55,1,55,2],[55,3,55,7],[55,8,55,23],[76,1,76,23],[84,1,84,23],[89,1,89,2],[86,1,86,2],[83,1,83,23],[85,3,85,23],[81,1,81,23],[85,1,85,2],[77,0,77,23],[82,1,82,23],[79,1,79,5],[103,3,103,23],[104,1,104,2],[104,3,104,23],[106,1,106,23],[108,1,108,23],[109,1,109,23],[111,1,111,22],[152,1,152,23],[180,1,180,23],[135,1,135,23],[136,1,136,23],[138,1,138,23],[139,1,139,23],[144,1,144,23],[119,1,119,23],[120,1,120,23],[140,1,140,23],[132,1,132,23],[176,1,176,23],[148,1,148,23],[171,1,171,23],[142,1,142,23],[168,3,168,13],[168,14,168,23],[49,1,49,2],[49,3,49,23],[50,1,50,2],[50,3,50,23],[51,1,51,2],[51,3,51,23],[52,1,52,2],[52,3,52,23],[53,1,53,23],[93,1,93,23],[91,15,91,23],[92,1,92,2],[92,3,92,23],[253,1,253,21],[248,1,248,21],[254,1,254,21],[254,22,254,23],[248,22,248,23],[252,22,252,23],[253,22,253,23],[251,1,251,21],[251,22,251,23],[252,1,252,21],[249,1,249,21],[242,22,242,23],[159,3,159,21],[174,1,174,23],[212,1,212,23],[188,22,188,23],[205,1,205,21],[207,22,207,23],[205,22,205,23],[206,1,206,21],[47,1,47,23],[48,1,48,23],[237,1,237,23],[232,1,232,23],[227,1,227,23],[228,1,228,23],[229,1,229,23],[235,1,235,23],[242,1,242,21],[146,1,146,23],[160,3,160,23],[118,1,118,23],[115,1,115,23],[100,1,100,23],[184,1,184,23],[177,1,177,23],[179,1,179,23],[238,1,238,21],[238,22,238,23],[240,1,240,21],[240,22,240,23],[158,1,158,23],[188,1,188,21],[173,1,173,23],[42,1,42,2],[42,3,42,23],[43,3,43,23],[45,1,45,2],[211,22,211,23],[201,22,201,23],[204,22,204,23],[202,22,202,23],[198,1,198,21],[200,22,200,23],[101,1,101,23],[105,1,105,2],[105,3,105,23],[102,1,102,2],[124,1,124,23],[130,1,130,23],[121,1,121,23],[114,1,114,23],[143,1,143,23],[131,1,131,23],[134,1,134,23],[141,1,141,23],[137,1,137,23],[44,3,44,23],[29,1,29,23],[30,15,30,23],[32,1,32,23],[181,1,181,23],[159,22,159,23],[159,1,159,2],[172,1,172,23],[178,1,178,23],[89,3,89,23],[90,1,90,23],[33,0,33,23],[35,1,35,23],[36,1,36,22],[37,1,37,2],[38,1,38,2],[46,1,46,23],[38,3,38,23],[39,1,39,2],[39,3,39,23],[40,1,40,2],[40,3,40,23],[41,1,41,2],[41,3,41,23],[43,1,43,2],[0,0,0,15],[0,16,0,18],[24,3,24,23],[25,3,25,23],[26,3,26,23],[27,3,27,23],[28,3,28,23],[11,0,11,23],[12,0,12,23],[7,16,7,22],[10,0,10,23],[28,1,28,2],[17,0,17,23],[26,1,26,2],[27,1,27,2],[24,1,24,2],[1,0,1,15],[1,16,1,22],[2,0,2,15],[2,16,2,22],[3,0,3,15],[3,16,3,22],[4,0,4,15],[19,0,19,23],[21,1,21,23],[25,1,25,2],[30,1,30,2],[259,3,259,23],[22,1,22,23],[5,0,5,15],[5,16,5,22],[20,1,20,23],[9,0,9,15],[14,0,14,23],[18,1,18,23],[15,0,15,23],[13,0,13,23],[16,0,16,23],[9,16,9,22],[6,0,6,15],[6,16,6,22],[7,0,7,15],[8,0,8,15],[8,16,8,22],[31,1,31,2],[31,3,31,23],[45,3,45,23],[44,1,44,2],[37,3,37,13],[37,14,37,23],[445,1,445,21],[445,22,445,23],[336,1,336,2],[356,1,356,23],[338,3,338,23],[446,1,446,21],[129,1,129,23],[122,1,122,23],[123,1,123,23],[408,22,408,23],[383,3,383,21],[353,1,353,23],[175,1,175,23],[161,3,161,23],[160,1,160,2],[161,1,161,2],[147,1,147,23],[186,1,186,23],[206,22,206,23],[194,1,194,23],[169,1,169,2],[434,1,434,23],[527,1,527,23],[528,1,528,23],[509,1,509,23],[484,1,484,23],[498,0,498,23],[499,1,499,23],[500,1,500,23],[501,1,501,23],[502,1,502,23],[503,2,503,23],[504,1,504,23],[505,21,505,23],[506,1,506,23],[507,0,507,23],[525,1,525,23],[526,1,526,23],[519,1,519,23],[514,1,514,23],[492,0,492,23],[493,1,493,23],[496,1,496,22],[513,1,513,22],[489,1,489,23],[508,1,508,23],[431,1,431,23],[433,1,433,23],[439,1,439,2],[459,22,459,23],[461,1,461,23],[456,1,456,21],[456,22,456,23],[453,1,453,23],[460,1,460,21],[460,22,460,23],[455,1,455,21],[455,22,455,23],[457,1,457,21],[457,22,457,23],[451,1,451,21],[438,1,438,23],[465,1,465,23],[470,2,470,23],[446,22,446,23],[447,22,447,23],[441,22,441,23],[444,3,444,23],[458,1,458,21],[458,22,458,23],[447,1,447,21],[464,1,464,23],[463,1,463,23],[443,1,443,23],[442,1,442,23],[451,22,451,23],[448,1,448,23],[449,1,449,23],[450,22,450,23],[454,1,454,23],[452,1,452,21],[452,22,452,23],[450,1,450,21],[462,22,462,23],[459,1,459,21],[481,1,481,23],[480,1,480,23],[477,1,477,23],[466,0,466,23],[475,1,475,23],[476,0,476,23],[478,1,478,22],[467,1,467,23],[472,2,472,23],[474,1,474,22],[471,2,471,23],[469,1,469,23],[468,1,468,23],[535,14,536,22],[536,1,536,12],[533,1,533,12],[378,1,378,2],[378,3,378,23],[533,14,533,22],[379,1,379,2],[383,1,383,2],[403,1,403,21],[403,22,403,23],[404,1,404,21],[404,22,404,23],[405,1,405,21],[405,22,405,23],[392,1,392,23],[393,1,393,23],[397,1,397,23],[398,1,398,21],[398,22,398,23],[395,1,395,23],[396,1,396,23],[521,1,521,23],[473,1,473,23],[479,1,479,23],[491,1,491,23],[483,1,483,22],[487,1,487,23],[485,0,485,23],[486,1,486,23],[482,1,482,23],[361,22,361,23],[362,1,362,21],[334,22,334,23],[363,22,363,23],[364,1,364,21],[364,22,364,23],[371,22,371,23],[383,22,383,23],[372,1,372,21],[372,22,372,23],[343,22,343,23],[348,1,348,23],[347,1,347,23],[346,1,346,23],[345,1,345,23],[344,1,344,23],[343,1,343,2],[421,22,421,23],[420,1,420,15],[421,1,421,15],[332,22,332,23],[360,1,360,21],[360,22,360,23],[361,1,361,21],[333,1,333,21],[418,1,418,23],[414,1,414,21],[373,22,373,23],[420,22,420,23],[417,1,417,23],[374,1,374,21],[368,22,368,23],[354,1,354,23],[355,1,355,23],[334,1,334,21],[369,1,369,21],[337,1,337,2],[333,22,333,23],[371,1,371,21],[362,22,362,23],[335,1,335,23],[359,1,359,23],[422,22,422,23],[416,0,416,23],[162,1,162,2],[218,1,218,2],[218,3,218,23],[215,1,215,23],[230,1,230,23],[250,22,250,23],[241,1,241,21],[223,1,223,2],[239,1,239,23],[243,1,243,21],[243,22,243,23],[244,1,244,21],[244,22,244,23],[245,1,245,21],[245,22,245,23],[223,3,223,21],[223,22,223,23],[233,1,233,23],[216,1,216,2],[219,1,219,2],[219,3,219,23],[357,1,357,23],[0,19,0,23],[23,1,23,23],[34,1,34,23],[149,1,149,23],[196,1,196,23],[150,1,150,23],[185,1,185,23],[190,22,190,23],[191,22,191,23],[156,1,156,23],[4,16,4,22],[79,6,79,7],[192,22,192,23],[193,22,193,23],[154,1,154,23],[163,1,163,22],[169,3,169,21],[169,22,169,23],[170,1,170,23],[168,1,168,2],[151,1,151,23],[187,1,187,23],[153,1,153,23],[193,1,193,21],[249,22,249,23],[256,19,256,23],[272,1,272,23],[273,1,273,23],[231,1,231,23],[208,1,208,21],[415,1,415,23],[376,1,376,2],[377,1,377,2],[377,3,377,23],[384,1,384,23],[409,1,409,21],[406,1,406,21],[408,1,408,21],[382,1,382,2],[382,3,382,13],[414,22,414,23],[406,22,406,23],[407,22,407,23],[400,22,400,23],[401,22,401,23],[399,1,399,23],[409,22,409,23],[283,1,283,21],[259,1,259,2],[250,1,250,21],[255,1,255,23],[257,1,257,2],[257,3,257,23],[302,3,302,13],[302,14,302,23],[296,19,296,23],[329,1,329,21],[258,1,258,2],[258,3,258,23],[261,1,261,4],[261,5,261,21],[260,1,260,22],[262,1,262,2],[262,3,262,13],[262,14,262,23],[263,22,263,23],[279,1,279,23],[284,1,284,21],[285,1,285,21],[285,22,285,23],[286,1,286,21],[281,1,281,21],[222,14,222,23],[222,3,222,13],[199,22,199,23],[217,3,217,23],[247,22,247,23],[246,22,246,23],[246,1,246,21],[241,22,241,23],[214,2,214,15],[236,1,236,23],[209,1,209,21],[216,19,216,23],[216,3,216,18],[224,1,224,23],[225,1,225,23],[226,1,226,23],[247,1,247,21],[217,1,217,2],[200,1,200,21],[202,1,202,21],[211,1,211,21],[209,22,209,23],[208,22,208,23],[532,1,532,23],[440,1,440,21],[441,1,441,21],[462,1,462,21],[444,1,444,2],[516,1,516,23],[517,1,517,23],[427,1,427,23],[305,1,305,23],[306,1,306,23],[307,1,307,23],[308,1,308,23],[312,1,312,23],[314,1,314,23],[320,1,320,21],[316,1,316,23],[318,1,318,21],[318,22,318,23],[419,1,419,23],[425,22,425,23],[374,22,374,23],[426,22,426,23],[315,1,315,23],[309,1,309,23],[327,22,327,23],[321,1,321,21],[321,22,321,23],[313,1,313,23],[301,1,301,4],[301,5,301,21],[324,1,324,21],[319,1,319,23],[300,1,300,22],[320,22,320,23],[323,1,323,21],[323,22,323,23],[327,1,327,21],[117,1,117,23],[183,1,183,22],[164,1,164,23],[165,1,165,23],[166,1,166,23],[157,1,157,23],[75,1,75,23],[56,1,56,22],[57,1,57,23],[116,1,116,22],[125,1,125,23],[128,1,128,23],[126,1,126,23],[127,1,127,23],[133,1,133,23],[59,1,59,23],[61,1,61,23],[63,1,63,23],[65,1,65,23],[67,1,67,23],[69,1,69,23],[71,1,71,23],[73,1,73,23],[182,1,182,23]]}
["De aanvraag van een investeringssubsidie maatregelen agressiepreventie",null,null,null,null,null,null,null,null,null,null,null,null,null,null,null,"VIA-01-151214",null,null,null,null,null,null,null,null,null,"Vink altijd 'inhoud inschakelen' aan!"]
[null,null,null,null,null,null,null,null,null,null,null,null,null,null,null,null,"In te vullen door de behandelende afdeling"]
["Vlaams Infrastructuurfonds voor Persoonsgebonden",null,null,null,null,null,null,null,null,null,null,null,null,null,null,null,"dossiernummer"]
["Aangelegenheden (VIPA)",null,null,null,null,null,null,null,null,null,null,null,null,null,null,null,{"$f":"PROCEDURE!C5","v":0}]
["Ellipsgebouw"]
["Koning Albert II-laan 35 bus 34, 1030 BRUSSEL",null,null,null,null,null,null,null,null,null,null,null,null,null,null,null,"Dossierstatus"]
["Tel. 02 553 32 41 – Fax 02 553 34 80",null,null,null,null,null,null,null,null,null,null,null,null,null,null,null,{"$f":"PROCEDURE!C4","v":"aanvraag indienen tot"}]
["E-mail: vipa@vlaanderen.be"]
[null,null,null,null,null,null,null,null,null,null,null,null,null,null,null,null,"Datum"]
["Waarvoor dient dit formulier?",null,null,null,null,null,null,null,null,null,null,null,null,null,null,null,{"$f":"VLOOKUP(PROCEDURE!C4,PROCEDURE!B25:C46,2,FALSE)","v":"2020-12-31"}]
["Met dit formulier bezorgt de aanvrager het Vlaams Infrastructuurfonds voor Persoonsgebonden Aangelegenheden (VIPA) de nodige identificatiegegevens zodat het "]
["VIPA over de juiste gegevens beschikt in zijn correspondentie met de initiatiefnemer. De procedure zoals beschreven in het Besluit van de Vlaamse Regering "]
["houdende de subsidiëring van projecten van preventieve infrastructurele maatregelen inzake agressie, vrijheidsbeperking of vrijheidsberoving in bepaalde voorzieningen "]
["van het beleidsdomein Welzijn, Volksgezondheid en Gezin."]
[]
["Aan wie bezorg je dit formulier?"]
["De indiening van de subsidieaanvraag gebeurt digitaal in een Excel-bestand, geen PDF of scan. Stuur dit formulier, samen met de visienota en de nodige "]
["documenten naar het Vlaams Infrastructuurfonds voor Persoonsgebonden Aangelegenheden (VIPA) vipa@vlaanderen.be  "]
[]
["Identificatiegegevens van de aanvrager"]
[]
["A.","Vul de gegevens in van de aanvrager die een investeringsdossier indient."]
[null,"De aanvrager is de inrichtende macht (vzw, OCMW …) van de welzijns- of gezondheidsvoorziening."]
[]
[null,"naam aanvrager:",null,null,null,null,null,null,null,null,null,null,null,null,null,null,null,null,null,null,null,null,null,null,null,null,"Vul elk fluorescerend vakje in, anders is de aanvraag niet ontvankelijk."]
[null,"straat en nummer:"]
[null,"postnr. en gemeente: "]
[null,"telefoonnummer: "]
[null,"e-mailadres: "]
[]
[null,"ondernemingsnr.: ",null,0]
[null,"rechtsvorm: (vb. vzw)"]
[]
["Identificatiegegevens van de welzijns- of gezondheidsvoorziening (hoofdaanvrager)"]
[]
["B.","Vul de gegevens in van de welzijns- of gezondheidsvoorziening"]
[null,"Is er al eerder een aanvraag investeringssubsidie maatregelen agressiepreventie ingediend?",null,null,null,null,null,null,null,null,null,null,null,null,null,null,null,null,null,null,null,null,null,"nee",null,null,"Klik op het vakje 'kies'         en duid de juiste keuze aan via het pijltje"]
[null,"dossiernummer: ",null,null,null,null,null,null,null,null,null,null,null,null,"vul het meest recente nummer in (PVAXXX)"]
[null,"naam voorziening:"]
[null,"straat en nummer:"]
[null,"postnr. en gemeente: ",null,null,null,null,null,null,null,null,null,null,null,null,null,null,null,null,null,null,null,null,null,null,null,null,"Vakjes met dezelfde tekst als de aanvrager kan je gemakkelijk kopiëren "]
[null,"telefoonnummer: ",null,null,null,null,null,null,null,null,null,null,null,null,null,null,null,null,null,null,null,null,null,null,null,null,"(Ctrl + C of met de muis rechtsklikken) en plakken (Ctrl + V)"]
[null,"e-mailadres: "]
[null,"vergund door:",null,"kies"]
[null,"GES plaatsen?",null,"kies"]
[null,"HCO nummer: "]
[null,"Dit nummer is uniek voor elke voorziening, je kan dit opzoeken via: https://publiek.departementwvg.be/cobrha/ "]
[]
["C.","Vul de gegevens in van de contactpersoon."]
[null,"naam:"]
[null,"functie:"]
[null,"telefoonnummer: "]
[null,"e-mailadres: "]
[]
["D.","Vul de gegevens de capaciteit in van de voorziening"]
[null,"verblijfscapaciteit:",null,null,null,null,null,null,"(enkel capaciteit voor minderjarigen met een verblijfsfunctie, Art. 2, BVR)"]
[null,"Toon mij welke welzijns- of gezondheidsvoorziening onder het toepassingsgebied vallen, Art. 2, BVR)",null,null,null,null,null,null,null,null,null,null,null,null,null,null,null,null,null,null,null,null,null,"kies"]
[]
[null,"1. PH multifunctioneel centrum             "]
[null,"1° de multifunctionele centra, vermeld in artikel 2 van het besluit van de Vlaamse Regering van 26 februari 2016 houdende erkenning en subsidiëring van multifunctionele centra voor minderjarige personen met een handicap, voor de ondersteuningsfunctie verblijf;"]
[null,"2. PH vergunde zorgaanbieder n-RTH geïnterneerden      "]
[null,"2° de vergunde zorgaanbieders, vermeld in artikel 2 van het besluit van de Vlaamse Regering van 24 juni 2016 houdende het vergunnen van aanbieders van niet-rechtstreeks toegankelijke zorg en ondersteuning voor personen met een handicap, die woonondersteuning bieden aan personen die geïnterneerd zijn als vermeld in de wet van 5 mei 2014 betreffende de internering;"]
[null,"3. PH unit voor geïnterneerden        "]
[null,"3° de units voor geïnterneerden, vermeld in artikel 10 van het besluit van de Vlaamse Regering van 24 november 2017 over de erkenning en subsidiëring van voorzieningen die ondersteuning bieden aan personen met een handicap in de gevangenis, en van units voor geïnterneerden;"]
[null,"4. BJB organisatie voor bijzondere jeugdzorg "]
[null,"4° de organisaties voor bijzondere jeugdzorg, vermeld in het besluit van de Vlaamse Regering inzake de erkenningsvoorwaarden en de subsidienormen voor de voorzieningen van de bijzondere jeugdbijstand of in de jeugdhulp, die erkend zijn voor typemodules verblijf voor -12-jarigen, verblijf voor +12-jarigen, verblijf voor 0-18 jaar, verblijf voor 0-25-jarigen of beveiligd verblijf;"]
[null,"5. BJB centrum voor integrale gezinszorg     "]
[null,"5° de centra voor integrale gezinszorg, vermeld in het besluit van de Vlaamse Regering inzake de erkenningsvoorwaarden en de subsidienormen voor de voorzieningen van de bijzondere jeugdbijstand of in de jeugdhulp;"]
[null,"6. BJB onthaal-, oriëntatie- en observatiecentra         "]
[null,"6° de onthaal-, oriëntatie- en observatiecentra, vermeld in het besluit van de Vlaamse Regering inzake de erkenningsvoorwaarden en de subsidienormen voor de voorzieningen van de bijzondere jeugdbijstand of in de jeugdhulp"]
[null,"7. PZH proefprojecten forensische K-bedden      "]
[null,"7° de forensische K-bedden: de proefprojecten forensische K-bedden, vermeld in artikel 2.5 van de ministeriële omzendbrief nr. 1/2006 van 28 september 2006 betreffende de wetten van 15 mei 2006 en 13 juni 2006 tot wijziging van de wetgeving betreffende de jeugdbescherming en het ten laste nemen van minderjarigen die een als misdrijf omschreven feit hebben gepleegd;"]
[null,"8. PZH K-dienst   "]
[null,"8° K-dienst: de dienst Neuropsychiatrie voor kinderen als vermeld in artikel 2 van het koninklijk besluit van 23 oktober 1964 tot bepaling van de normen die door de ziekenhuizen en hun diensten moeten worden nageleefd;"]
[null,"9. PZH de (semi)residentiële revalidatiecentra      "]
[null,"9° de (semi)residentiële revalidatiecentra voor kinderen en jongeren met een ernstige medisch-psychologische aandoening en de residentiële revalidatiecentra voor minderjarige verslaafden die vallen onder het beleid inzake longtermcare-revalidatie als vermeld in artikel 5, § 1, I, eerste lid, 5°, van de bijzondere wet van 8 augustus 1980 tot hervorming der instellingen."]
[]
["Identificatiegegevens medeaanvrager (gezamenlijk project)"]
[]
["E.","Is er een medeaanvrager?",null,null,null,null,"kies"]
[]
["E.","Vul de gegevens in van de medeaanvrager die een investeringsdossier indient."]
[null,"Enkel van toepassing als er meerdere aanvragers samen het project aanvragen. "]
[null,"De aanvrager is de inrichtende macht (vzw, OCMW …) van de welzijns- of gezondheidsvoorziening."]
[]
[null,"naam:"]
[null,"straat en nummer:"]
[null,"postnr. en gemeente: "]
[null,"telefoonnummer: "]
[null,"e-mailadres: "]
[]
[null,"ondernemingsnr.: "]
[null,"Rechtspersoon:"]
[]
["F.","Vul de gegevens in van de welzijns- of gezondheidsvoorziening"]
[null,"naam:"]
[null,"straat en nummer:"]
[null,"postnr. en gemeente: "]
[null,"telefoonnummer: "]
[null,"e-mailadres: "]
[]
["G.","Vul de gegevens in van de contactpersoon."]
[null,"naam:"]
[null,"functie:"]
[null,"telefoonnummer: "]
[null,"e-mailadres: "]
[]
["H.","Voeg in bijlage de samenwerkingsovereenkomst"]
[null,"Ingeval het om een gezamenlijke aanvraag gaat, voegt u een samenwerkingsovereenkomst aan de bijlage toe. Daarin worden onder meer afspraken "]
[null,"rond de (verdeling van) subsidies, het gedeelde gebruik en beheer opgenomen. Het subsidiebedrag zal aan de hoofdaanvrager toegekend worden. "]
[]
[null,"De documenten 'samenwerkingsovereenkomst_naam voorziening' is als bijlage toegevoegd.",null,null,null,null,null,null,null,null,null,null,null,null,null,null,null,null,null,null,null,null,null,"kies"]
[]
["Projectnota"]
[]
[null,"De maatregelingen"]
[null,"Toon mij welke infrastructurele maatregelen in aanmerking komen, Art. 5, BVR)",null,null,null,null,null,null,null,null,null,null,null,null,null,null,null,null,null,null,null,null,null,"kies"]
[]
[null,"De maatregelen moeten gerichte aanpassingen aan de infrastructuur betreffen ter preventie van agressie. De maatregelen moeten een sterke en"]
[null,"éénduidige vertaling zijn van de werking rond preventie van agressie en aangepast zijn aan de beoogde doelgroep."]
[]
[null,"1° maatregelen voor buiteninrichting "]
[null,"a) de aanleg van sportvelden"]
[null,"b) de installatie van buitenspeeltoestellen"]
[null,"c) de realisatie van een buitenrustruimte"]
[null,"De buitenrustruimte is een buitenomgeving waar mensen tot rust kunnen komen door natuurbeleving en waar dit een preventief effect kan hebben op agressie. Een gediversifieerde groene buitenruimte heeft een positief effect op het welbevinden. Meer info hierover vindt u op onze website. Neem hiervoor ook contact op met onze collega's van Natuur en Bos van de Vlaamse Gemeenschap."]
[null,"Projecten die hieronder kunnen vallen zijn bijvoorbeeld:"]
[null,"de aanleg van een natuurlijke, therapeutische tuin (aanplanten van (fruit)bomen/planten, vergroening van de site, aanleg van verschillende ondergronden (materiaal en hoogtes), …)\neen natuurlijke (begroeide) site-omsluiting in plaats van een draadomheining\naanleg van buitenplekken om tot rust te komen (bijvoorbeeld een moestuin, natuurlijke terugtrekplekken, blotevoetenpad, waterelementen, hangmat, (beschutte) rustplekken, vuurplaatsen, cacoons, dierenverblijven, …)"]
[null,"De volgende projecten zijn niet subsidiabel: algemene buitenaanleg zoals wegenis/ poorten/verhardingen voor (dienst)voertuigen en brandweer, parkeerplaatsen en dergelijke. Kunstgras kunnen we in kader van hittepreventie (hitte-eiland effect), duurzaamheid en welzijn niet subsidiëren. Creëren van een nieuwe binnenruimte (bv. via modulaire bouw in de tuin) valt hier niet onder."]
[null,"2° voor de herinrichting van leefruimten of kamers:"]
[null,"a) maatregelen om ruimten op te delen of prikkelarm te maken"]
[null,"b) maatregelen om een veiligere omgeving te realiseren"]
[null,"c) maatregelen om een ouder mee te laten overnachten"]
[null,"Punctuele herinrichting of aanpassing van bestaande kamers of gemeenschappelijke ruimten: prikkelarme, veilige ruimtes en maatregelen om een ouder mee te laten overnachten."]
[null,"3° het installeren van zorgtechnologie"]
[null,"a) in het kader van toezicht, zoals camera’s"]
[null,"b) alarmsystemen en oproepsystemen, zoals deursystemen"]
[null,"4° de inrichting, herinrichting of bijbehorende uitrusting van de volgende specifieke ruimten"]
[null,"a) ruimten voor ontspanning"]
[null,"b) ruimten voor rust en comfort"]
[null,"c) ruimten voor dagbesteding"]
[null,"d) ruimten voor afzondering"]
[null,"Specifieke inrichtingsruimten (bv.. ontspannings-, rust-, afzonderingsruimte, comfortrooms, …) inrichten, herinrichten of uitrusten i.f.v. preventie van agressie of vrijheidsbeperking of ter uitvoering van veilige vrijheidsbeperking."]
[]
[null,"Voor toekomstige VIPA nieuwbouw- of uitbreidingsprojecten kan men enkel subsidies vragen rond de buiteninrichting. "]
[null,"Voor toekomstige VIPA dossiers voor verbouwingen, kunnen de maatregelen niet dubbel aangevraagd worden."]
[null,"Indien een uitbreiding, nieuwbouw of een zeer grondige verbouwing nodig is, zijn er de bestaande VIPA-kanalen voor "]
[null,"verbouwing of vervangingsnieuwbouw en niet deze gerichte subsidiëring. "]
[]
[null,"De regelgeving maakt het mogelijk om bijkomende inlichtingen te vragen bij onduidelijkheden, maar het zal niet mogelijk zijn om een project"]
[null,"inhoudelijk bij te sturen na indiening. (Omwille van de gelijke behandeling van de verschillende aanvragen.)"]
[null,"Beschrijf daarom per project duidelijk wat je zal realiseren en hou rekening met het geraamde maximale "]
[null,"subsidiebedrag. Het subsidiebedrag kan nooit verhoogd worden bij de eindafrekening."]
[null,"De aanvrager voltooit het project binnen twee jaar nadat hij de beslissing tot toekenning van de investeringssubsidie heeft ontvangen. Als het project"]
[null,"niet is voltooid binnen de voormelde termijn, vervalt de beslissing tot toekenning van de investeringssubsidie. "]
[]
["I.","Vul de gegevens in, per project"]
[null,"Per project is er maar 1 adres mogelijk. Bij meerdere adressen voeg je meerdere projecten toe."]
[]
[null,"Project 1:",null,null,null,null,null,null,null,null,null,null,null,null,null,null,null,null,null,null,null,null,"(titel project)"]
[null,"straat en nummer:"]
[null,"postnr. en gemeente: "]
[null,"zorgvorm project:",null,"zorgvorm zoals beschreven in artikel 2. van het besluit (klik voor keuze)"]
[null,"zijn er toekomstige of lopende reguliere VIPA-subsidie projecten voor dit gebouw?",null,null,null,null,null,null,null,null,null,null,null,null,null,null,null,null,null,null,null,null,null,"kies"]
[null,"Voor toekomstige VIPA nieuwbouw- of uitbreidingsprojecten kan men enkel subsidies vragen rond de buiteninrichting. "]
[null,"Voor toekomstige VIPA dossiers voor verbouwingen, kunnen de maatregelen niet dubbel aangevraagd worden."]
[null,"Om deze reden vragen we de meest recente dossiernummers van de reguliere VIPA-subsidies"]
[null,"Om welke dossiertype gaat het",null,null,null,"keuze"]
[null,"VIPA dossiernummer:",null,null,null,null,null,null,null,null,null,null,null,null,"vul de meest recente nummers in (reguliere VIPA-subsidies)"]
[null,"aard van investering:",null,"kies eerst toekomstige VIPA-subsidie projecten (hierboven)",null,null,null,null,null,null,null,null,null,null,null,null,null,null,null,null,null,null,"conform art. 5."]
[]
[null,"Beschrijft hieronder bondig de gevraagde elementen. ",null,null,null,null,null,null,null,null,null,null,null,null,null,null,null,null,null,null,null,null,null,null,null,null,"Wil je tekst kopiëren uit een ander bestand, vb. een Word-bestand? "]
[null,"a) een beschrijving van de preventieve infrastructurele maatregelen waarvoor de subsidie wordt aangevraagd; ",null,null,null,null,null,null,null,null,null,null,null,null,null,null,null,null,null,null,null,null,null,null,null,null,"Klik op het vakje (gele) en plak je tekst in de formulebalk."]
[]
[]
[null,"b) de manier waarop het project past in het beleid rond preventie van agressie, vrijheidsbeperking of "]
[null,"vrijheidsberoving en de verwachte meerwaarde voor de doelgroep; "]
[null,null,null,null,null,null,null,null,null,null,null,null,null,null,null,null,null,null,null,null,null,null,null,null,null,null,"Beschrijf hier steeds kort en bondig. In de visienota kan je eventueel een uitgebreidere beschrijving meegeven indien dit nodig blijkt. "]
[]
[null,"c) de kwaliteitsaspecten van het project, met onder meer een beschrijving van de volgende aspecten: comfort, ",null,null,null,null,null,null,null,null,null,null,null,null,null,null,null,null,null,null,null,null,null,null,null,null,"Wil je een volgende regel, druk Alt + Enter samen in"]
[null,"privacy, veiligheid, huiselijkheid, duurzaamheid, materiaalkeuze, vernieuwend karakter;"]
[]
[]
[null,"Toon mij een voorbeeld van een kostenraming (excl. BTW)",null,null,null,null,null,null,null,null,null,null,null,null,null,null,null,null,null,null,null,null,null,"kies"]
[]
[null,"De kostenraming is gedetailleerd in die mate dat ook later aan de hand van de facturen een vergelijking kan opgemaakt worden. Enkel een"]
[null,"totaalbedrag voor verschillende kosten is onvoldoende. (vb. 1 bedrag voor de gehele tuinaanleg) Voorbeeld van kostenraming van een project:"]
[]
["1.","Aanleg therapeutische tuin (dit wordt automatisch overgenomen van de beschrijving van je project)",null,null,null,null,null,null,null,null,null,null,null,null,null,null,null,null,null,null,null,null,{"$f":"SUM(W191:X194)","v":40102}]
[]
[null,"dierenverblijf (kleine knaagdieren)",null,null,null,null,null,null,null,null,null,null,null,null,null,null,null,null,null,null,null,null,300]
[null,"aanplanting beplanting en fruitbomen zoals beschreven in offerte (zie bijlage)",null,null,null,null,null,null,null,null,null,null,null,null,null,null,null,null,null,null,null,null,37852]
[null,"moestuin",null,null,null,null,null,null,null,null,null,null,null,null,null,null,null,null,null,null,null,null,450]
[null,"nestschommel",null,null,null,null,null,null,null,null,null,null,null,null,null,null,null,null,null,null,null,null,1500]
[null,"Kostenraming excl. BTW"]
["1.",{"$f":"D160","v":0},null,null,null,null,null,null,null,null,null,null,null,null,null,null,null,null,null,null,null,null,{"$f":"SUM(W198:X221)","v":0},null,null,null,"De som wordt automatisch berekend."]
[]
[]
[]
[]
[]
[]
[]
[]
[]
[]
[]
[]
[]
[]
[null,null,null,null,null,null,null,null,null,null,null,null,null,null,null,null,null,null,null,null,null,null,null,null,null,null,"Vul de titel van een nieuw project in, de nodige gegevens worden zichtbaar."]
[]
[]
[]
[]
[]
[null,"Project 2:",null,null,null,null,null,null,null,null,null,null,null,null,null,null,null,null,null,"(titel project indien van toepassing)"]
[null,"straat en nummer:"]
[null,"postnr. en gemeente: "]
[null,"zorgvorm project:",null,"zorgvorm zoals beschreven in artikel 2. van het besluit (klik voor keuze)"]
[null,"zijn er toekomstige of lopende VIPA-subsidie nieuwbouw- of uitbreidingsprojecten voor dit gebouw?",null,null,null,null,null,null,null,null,null,null,null,null,null,null,null,null,null,null,null,null,null,"kies"]
[null,"Om welke dossiertype gaat het",null,null,null,"keuze"]
[null,"VIPA dossiernummer:",null,null,null,null,null,null,null,null,null,null,null,null,"vul de meest recente nummers in (reguliere VIPA-subsidies)"]
[null,"aard van investering:",null,"kies eerst toekomstige VIPA-subsidie projecten (hierboven)",null,null,null,null,null,null,null,null,null,null,null,null,null,null,null,null,null,null,"conform art. 5."]
[]
[null,"Beschrijft hieronder bondig de gevraagde elementen. "]
[null,"a) een beschrijving van de preventieve infrastructurele maatregelen waarvoor de subsidie wordt aangevraagd; "]
[]
[]
[null,"b) de manier waarop het project past in het beleid rond preventie van agressie, vrijheidsbeperking of "]
[null,"vrijheidsberoving en de verwachte meerwaarde voor de doelgroep; "]
[]
[]
[null,"c) de kwaliteitsaspecten van het project, met onder meer een beschrijving van de volgende aspecten: comfort, "]
[null,"privacy, veiligheid, huiselijkheid, duurzaamheid, materiaalkeuze, vernieuwend karakter;"]
[]
[]
[null,"Kostenraming excl. BTW"]
["2.",{"$f":"D217","v":0},null,null,null,null,null,null,null,null,null,null,null,null,null,null,null,null,null,null,null,null,{"$f":"SUM(W241:X255)","v":0}]
[]
[]
[]
[]
[]
[]
[]
[]
[]
[]
[]
[]
[]
[]
[]
[]
[]
[null,"Project 3:",null,null,null,null,null,null,null,null,null,null,null,null,null,null,null,null,null,"(titel project indien van toepassing)"]
[null,"straat en nummer:"]
[null,"postnr. en gemeente: "]
[null,"zorgvorm project:",null,"zorgvorm zoals beschreven in artikel 2. van het besluit (klik voor keuze)"]
[null,"zijn er toekomstige of lopende VIPA-subsidie nieuwbouw- of uitbreidingsprojecten voor dit gebouw?",null,null,null,null,null,null,null,null,null,null,null,null,null,null,null,null,null,null,null,null,null,"kies"]
[null,"Om welke dossiertype gaat het",null,null,null,"keuze"]
[null,"VIPA dossiernummer:",null,null,null,null,null,null,null,null,null,null,null,null,"vul de meest recente nummers in (reguliere VIPA-subsidies)"]
[null,"aard van investering:",null,"kies eerst toekomstige VIPA-subsidie projecten (hierboven)",null,null,null,null,null,null,null,null,null,null,null,null,null,null,null,null,null,null,"conform art. 5."]
[]
[null,"Beschrijft hieronder bondig de gevraagde elementen. "]
[null,"a) een beschrijving van de preventieve infrastructurele maatregelen waarvoor de subsidie wordt aangevraagd; "]
[]
[]
[null,"b) de manier waarop het project past in het beleid rond preventie van agressie, vrijheidsbeperking of "]
[null,"vrijheidsberoving en de verwachte meerwaarde voor de doelgroep; "]
[]
[]
[null,"c) de kwaliteitsaspecten van het project, met onder meer een beschrijving van de volgende aspecten: comfort, "]
[null,"privacy, veiligheid, huiselijkheid, duurzaamheid, materiaalkeuze, vernieuwend karakter;"]
[]
[]
[null,"Kostenraming excl. BTW"]
["3.",{"$f":"D257","v":0},null,null,null,null,null,null,null,null,null,null,null,null,null,null,null,null,null,null,null,null,{"$f":"SUM(W281:X295)","v":0}]
[]
[]
[]
[]
[]
[]
[]
[]
[]
[]
[]
[]
[]
[]
[]
[]
[]
[null,"Project 4:",null,null,null,null,null,null,null,null,null,null,null,null,null,null,null,null,null,"(titel project indien van toepassing)"]
[null,"straat en nummer:"]
[null,"postnr. en gemeente: "]
[null,"zorgvorm project:",null,"zorgvorm zoals beschreven in artikel 2. van het besluit (klik voor keuze)"]
[null,"zijn er toekomstige of lopende VIPA-subsidie nieuwbouw- of uitbreidingsprojecten voor dit gebouw?",null,null,null,null,null,null,null,null,null,null,null,null,null,null,null,null,null,null,null,null,null,"kies"]
[null,"Om welke dossiertype gaat het",null,null,null,"keuze"]
[null,"VIPA dossiernummer:",null,null,null,null,null,null,null,null,null,null,null,null,"vul de meest recente nummers in (reguliere VIPA-subsidies)"]
[null,"aard van investering:",null,"kies eerst toekomstige VIPA-subsidie projecten (hierboven)",null,null,null,null,null,null,null,null,null,null,null,null,null,null,null,null,null,null,"conform art. 5."]
[]
[null,"Beschrijft hieronder bondig de gevraagde elementen. "]
[null,"a)\teen beschrijving van de preventieve infrastructurele maatregelen waarvoor de subsidie wordt aangevraagd; "]
[]
[]
[null,"b) de manier waarop het project past in het beleid rond preventie van agressie, vrijheidsbeperking of "]
[null,"vrijheidsberoving en de verwachte meerwaarde voor de doelgroep; "]
[]
[]
[null,"c) de kwaliteitsaspecten van het project, met onder meer een beschrijving van de volgende aspecten: comfort, "]
[null,"privacy, veiligheid, huiselijkheid, duurzaamheid, materiaalkeuze, vernieuwend karakter;"]
[]
[]
[null,"Kostenraming excl. BTW"]
["4.",{"$f":"D297","v":0},null,null,null,null,null,null,null,null,null,null,null,null,null,null,null,null,null,null,null,null,{"$f":"SUM(W321:X335)","v":0}]
[]
[]
[]
[]
[]
[]
[]
[]
[]
[]
[]
[]
[]
[]
[]
[]
[]
[null,"Project 5:",null,null,null,null,null,null,null,null,null,null,null,null,null,null,null,null,null,"(titel project indien van toepassing)"]
[null,"straat en nummer:"]
[null,"postnr. en gemeente: "]
[null,"zorgvorm project:",null,"zorgvorm zoals beschreven in artikel 2. van het besluit (klik voor keuze)"]
[null,"zijn er toekomstige of lopende VIPA-subsidie nieuwbouw- of uitbreidingsprojecten voor dit gebouw?",null,null,null,null,null,null,null,null,null,null,null,null,null,null,null,null,null,null,null,null,null,"kies"]
[null,"Om welke dossiertype gaat het",null,null,null,"keuze"]
[null,"VIPA dossiernummer:",null,null,null,null,null,null,null,null,null,null,null,null,"vul de meest recente nummers in (reguliere VIPA-subsidies)"]
[null,"aard van investering:",null,"kies eerst toekomstige VIPA-subsidie projecten (hierboven)",null,null,null,null,null,null,null,null,null,null,null,null,null,null,null,null,null,null,"conform art. 5."]
[]
[null,"Beschrijft hieronder bondig de gevraagde elementen. "]
[null,"a)\teen beschrijving van de preventieve infrastructurele maatregelen waarvoor de subsidie wordt aangevraagd; "]
[]
[]
[null,"b) de manier waarop het project past in het beleid rond preventie van agressie, vrijheidsbeperking of "]
[null,"vrijheidsberoving en de verwachte meerwaarde voor de doelgroep; "]
[]
[]
[null,"c) de kwaliteitsaspecten van het project, met onder meer een beschrijving van de volgende aspecten: comfort, "]
[null,"privacy, veiligheid, huiselijkheid, duurzaamheid, materiaalkeuze, vernieuwend karakter;"]
[]
[]
[null,"Kostenraming excl. BTW"]
["5.",{"$f":"D337","v":0},null,null,null,null,null,null,null,null,null,null,null,null,null,null,null,null,null,null,null,null,{"$f":"SUM(W361:X375)","v":0}]
[]
[]
[]
[]
[]
[]
[]
[]
[]
[]
[]
[]
[]
[]
[]
[]
[]
[null,"Project 6:",null,null,null,null,null,null,null,null,null,null,null,null,null,null,null,null,null,"(titel project indien van toepassing)"]
[null,"straat en nummer:"]
[null,"postnr. en gemeente: "]
[null,"zorgvorm project:",null,"zorgvorm zoals beschreven in artikel 2. van het besluit (klik voor keuze)"]
[null,"zijn er toekomstige of lopende VIPA-subsidie nieuwbouw- of uitbreidingsprojecten voor dit gebouw?",null,null,null,null,null,null,null,null,null,null,null,null,null,null,null,null,null,null,null,null,null,"kies"]
[null,"Om welke dossiertype gaat het",null,null,null,"keuze"]
[null,"VIPA dossiernummer:",null,null,null,null,null,null,null,null,null,null,null,null,"vul de meest recente nummers in (reguliere VIPA-subsidies)"]
[null,"aard van investering:",null,"kies eerst toekomstige VIPA-subsidie projecten (hierboven)",null,null,null,null,null,null,null,null,null,null,null,null,null,null,null,null,null,null,"conform art. 5."]
[]
[null,"Beschrijft hieronder bondig de gevraagde elementen. "]
[null,"a)\teen beschrijving van de preventieve infrastructurele maatregelen waarvoor de subsidie wordt aangevraagd; "]
[]
[]
[null,"b) de manier waarop het project past in het beleid rond preventie van agressie, vrijheidsbeperking of "]
[null,"vrijheidsberoving en de verwachte meerwaarde voor de doelgroep; "]
[]
[]
[null,"c) de kwaliteitsaspecten van het project, met onder meer een beschrijving van de volgende aspecten: comfort, "]
[null,"privacy, veiligheid, huiselijkheid, duurzaamheid, materiaalkeuze, vernieuwend karakter;"]
[]
[]
[null,"Kostenraming excl. BTW"]
["6.",{"$f":"D377","v":0},null,null,null,null,null,null,null,null,null,null,null,null,null,null,null,null,null,null,null,null,{"$f":"SUM(W401:X415)","v":0}]
[]
[]
[]
[]
[]
[]
[]
[]
[]
[]
[]
[]
[]
[]
[]
[]
[]
["Subsidiebepaling"]
[]
["J.","Vul de ontwerpkosten aan:"]
[null,"De beschrijving en subsidies zullen automatisch ingevuld zijn indien je de projecten volledig en correct invult."]
[null,"Titel",null,null,null,null,null,null,null,null,null,null,null,null,null,null,"Subsidie 75%",null,null,null,null,null,"ontwerpkosten?"]
[1,{"$f":"D160","v":0},null,null,null,null,null,null,null,null,null,null,null,null,null,null,{"$f":"0.75*W196","v":0},null,null,null,null,null,null,null,null,null,"Ontwerpkosten mag je opdelen per project, maar ze mogen ook het geheel omvatten"]
[2,{"$f":"D217","v":0},null,null,null,null,null,null,null,null,null,null,null,null,null,null,{"$f":"0.75*W239","v":0}]
[3,{"$f":"D257","v":0},null,null,null,null,null,null,null,null,null,null,null,null,null,null,{"$f":"0.75*W279","v":0}]
[4,{"$f":"D297","v":0},null,null,null,null,null,null,null,null,null,null,null,null,null,null,{"$f":"0.75*W319","v":0}]
[5,{"$f":"D337","v":0},null,null,null,null,null,null,null,null,null,null,null,null,null,null,{"$f":"0.75*W359","v":0}]
[6,{"$f":"D377","v":0},null,null,null,null,null,null,null,null,null,null,null,null,null,null,{"$f":"0.75*W399","v":0}]
[]
[null,"Som subsidie van alle projecten en ontwerpkosten",null,null,null,null,null,null,null,null,null,null,null,null,null,null,{"$f":"SUM(Q422)+Q423+Q424+Q425+Q426+Q427","v":0},null,null,null,null,null,{"$f":"SUM(W422)+W423+W424+W425+W426+W427","v":0}]
[]
[null,"Subsidiebepaling"]
[null,"Het maximale bedrag van de investeringssubsidie per voorziening is vastgesteld op 175.000 euro. Voor voorzieningen met een "]
[null,"verblijfscapaciteit van 50 of meer wordt dat maximale bedrag van de per voorziening vermeerderd met 2500 euro per verblijfsplaats."]
[null,"Bij een gezamenlijke aanvraag worden de bedragen per voorziening in rekening gebracht."]
[null,"De maximale bedragen gelden per voorziening en kunnen gespreid worden over verschillende projecten of verschillende oproepen."]
[null,"Dit maximale bedrag wordt 10% hoger als de voorziening voor de voorgenomen preventieve infrastructurele maatregelen één of meer "]
[null,"ontwerpstudies van een onafhankelijk studiebureau kan voorleggen."]
[]
[null,"De voorziening en de capaciteit  (automatisch indien 'Identificatiegegevens van de welzijns- of gezondheidsvoorziening' reeds is ingevuld.)"]
[null,"voorziening:",null,{"$f":"D39","v":0}]
[null,"verblijfscapaciteit: (op niveau van de voorziening)",null,null,null,null,null,null,null,null,null,null,null,null,null,null,null,null,null,null,null,null,{"$f":"D56","v":0}]
[null,"plafond op basis van capaciteit",null,null,null,null,null,null,null,null,null,null,null,null,null,null,null,null,null,null,null,null,{"$f":"175000+MAX($W$441-49,0)*2500","v":175000}]
[]
["K.","Vul de bedragen bij medeaanvrager: (enkel in te vullen indien van toepassing)"]
[null,"medeaanvrager:",null,{"$f":"D86","v":0}]
[null,"Vul in: Deel plafond van medeaanvrager (indien medeaanvrager een deel van zijn plafond overhevelt)"]
[null,"Vul in: Deel plafond naar hoofdaanvrager (Indien ik een deel overhevel naar project van een andere hoofdaanvrager)"]
[null,"plafond na eventuele overheveling",null,null,null,null,null,null,null,null,null,null,null,null,null,null,null,null,null,null,null,null,{"$f":"W442+W446-W447","v":175000}]
[]
["L.","Vul de bedragen van de vorige oproepen: (enkel in te vullen indien van toepassing)"]
[null,"Vul in: Subsidiebedrag (75% KP) van de vorige oproepen (zonder ontwerpkosten)"]
[null,"Vul in: Tussenkomst ontwerpkosten vorige oproepen "]
[null,"plafond eventueel na aftrek vorige oproepen",null,null,null,null,null,null,null,null,null,null,null,null,null,null,null,null,null,null,null,null,{"$f":"(W448-W451)","v":175000}]
[]
[null,"Huidige oproep: (automatische berekening na invullen kostenraming en ontwerpkosten)"]
[null,"Subsidiebedrag huidige aanvraag 75% kostprijs ",null,null,null,null,null,null,null,null,null,null,null,null,null,null,null,null,null,null,null,null,{"$f":"Q429","v":0}]
[null,"geplafonneerd subsidiebedrag ",null,null,null,null,null,null,null,null,null,null,null,null,null,null,null,null,null,null,null,null,{"$f":"MIN(W448,W456,W453)","v":0}]
[null,"som ontwerpkosten huidige aanvraag ",null,null,null,null,null,null,null,null,null,null,null,null,null,null,null,null,null,null,null,null,{"$f":"W429","v":0}]
[null,"Max. tussenkomst ontwerpkosten (o.b.v. 10% van de max. subsidie o.b.v. capaciteit voorziening)",null,null,null,null,null,null,null,null,null,null,null,null,null,null,null,null,null,null,null,null,{"$f":"((W451+W457)*0.1)-W452","v":0}]
[null,"geplafonneerde ontwerpkosten (ook minwaarde)",null,null,null,null,null,null,null,null,null,null,null,null,null,null,null,null,null,null,null,null,{"$f":"MIN(W459,W458)","v":0}]
[null,"geplafonneerde ontwerpkosten ",null,null,null,null,null,null,null,null,null,null,null,null,null,null,null,null,null,null,null,null,{"$f":"MAX(0,W460)","v":0}]
[]
[null,"Maximale subsidie voor huidige aanvraag",null,null,null,null,null,null,null,null,null,null,null,null,null,null,null,null,null,null,null,null,{"$f":"MAX(W457+W461,0)","v":0},null,null,null,"Het is niet mogelijk om een project inhoudelijk bij te sturen na indiening. Het subsidiebedrag kan nooit verhoogd worden bij de eindafrekening. \nHou rekening met het geraamde maximale subsidiebedrag en jullie eigen financiële middelen om het project (zoals beschreven) binnen twee jaar te voltooien."]
[]
[null,"De betaling van de subsidies gebeurt in één schijf, op basis van de voorlegging van o.m. alle facturen. Er wordt bij eindafrekening een aanpassing van het subsidiebedrag voorzien, indien de gemaakte kosten lager liggen dan voorzien."]
[]
["Plannen"]
[]
["M.","Voeg in bijlage de plannen "]
[null,"De plannen van het project, met daarbij een aanduiding van de geplande maatregelen ten opzichte van de"]
[null,"bestaande situatie:","Voorbeeld: aanduiding van de aanleg van een basketbalveld op het bestaand inplantingsplan."]
[null,null,"Voorbeeld: plannen van de tuinaanleg voor een buitenrustruimte."]
[null,null,"Voorbeeld: aanduiding op de bestaande plannen welke ruimtes heringericht worden."]
[]
[null,"Het document 'plannen_naam voorziening' is als bijlage toegevoegd.",null,null,null,null,null,null,null,null,null,null,null,null,null,null,null,null,null,null,null,null,null,"kies"]
[]
["Brandveiligheid"]
[]
["N.","De voorgestelde maatregelen hebben een impact op de brandveiligheid",null,null,null,null,null,null,null,null,null,null,null,null,null,null,null,null,null,null,null,null,null,"kies"]
[null,"Opgelet: het installeren van nieuwe deursystemen hebben altijd een impact op de brandveiligheid, bespreek uw keuze steeds met de "]
[null,"brandweerdienst. Als de voorgestelde maatregelen een impact hebben op de brandveiligheid: een advies van de bevoegde brandweerdienst of een  "]
[null,"verslag van de brandweer dat de aanvrager heeft ondertekend en dat ter kennisgeving is bezorgd aan de bevoegde brandweerdienst;"]
[]
[null,"Het document 'brandweeradvies_naam voorziening' is als bijlage toegevoegd.",null,null,null,null,null,null,null,null,null,null,null,null,null,null,null,null,null,null,null,null,null,"kies"]
[]
["Beslissing Raad van Bestuur"]
[]
["O.","Voeg in bijlage de ondertekende beslissing"]
[null,"Voeg in bijlage een kopie van de ondertekende beslissing van het bevoegde orgaan van de aanvrager om de investeringssubsidie aan te vragen. "]
[]
[null,"Het document 'beslissingraadvanbestuur_naam voorziening' is als bijlage toegevoegd.",null,null,null,null,null,null,null,null,null,null,null,null,null,null,null,null,null,null,null,null,null,"kies"]
[]
["Visienota en procesmatige aanpak"]
[]
["P.","Voeg in bijlage de visienota en de procesmatige aanpak (gebruik hiervoor het model dat ter beschikking staat.)"]
[]
[null,"Het document 'visienota_naam voorziening' is als bijlage toegevoegd. ",null,null,null,null,null,null,null,null,null,null,null,null,null,null,null,null,null,null,null,null,null,"kies"]
[]
["Bankgegevens"]
[]
["Q.","Vul de gegevens in van de rekening waarop de investeringssubsidies betaald moet worden."]
[null,"Bij schuldoverdracht voegt u een kopie van de overeenkomst met uw financiële instelling bij dit formulier."]
[]
[null,"naam: "]
[]
[null,"IBAN-rek.nr.:","B","E"]
[]
["Ondertekening"]
[]
[null,"Het VIPA kan met het oog op de controle van de erkenning in elke fase van de procedure, de nodige gegevens opvragen."]
["R.","Vul de onderstaande verklaring in."]
[null,"Ik, in naam van de directie, verklaar dat de voorziening waarvoor de subsidie wordt aangevraagd, is erkend of voldoet"]
[null,"aan de wettelijke voorwaarden om zorg- en dienstverlening te organiseren in het kader van de persoonsgebonden"]
[null,"aangelegenheden, vermeld in artikel 2, 1°, van het decreet van 23 februari 1994.",null,null,null,null,null,null,null,null,null,null,null,null,null,null,null,null,null,null,null,null,null,"kies"]
[]
["S.","Vul de onderstaande verklaring in."]
[null,"Ik, in naam van de directie, verklaar voor het project waarvoor de subsidie wordt aangevraagd, de aanvrager over een "]
[null,"genotsrecht beschikt op het project als vermeld in art. 12 van het decreet van 23 februari 1994. (voor een periode die voor onroerende"]
[null,"goederen in elk geval minstens 25 jaar bedraagt en voor roerende goederen in elk geval minstens 5 jaar bedraagt.) Als de aanvrager en de"]
[null,"eigenaar of de houder van de zakelijke rechten op de grond waarop een project wordt gepland, twee verschillende personen"]
[null,"zijn, mag er tussen hen geen ongeoorloofde verwantschapsband bestaan als vermeld in art. 4 van het besluit.",null,null,null,null,null,null,null,null,null,null,null,null,null,null,null,null,null,null,null,null,null,"kies"]
[]
["T.","Vul de onderstaande verklaring in."]
[null,"Ik, in naam van de directie, verklaar op erewoord dat voor voorliggende aanvraag geen andere investeringssubsidie "]
[null,"verkregen werd, of aangevraagd zal worden. ",null,null,null,null,null,null,null,null,null,null,null,null,null,null,null,null,null,null,null,null,null,"kies"]
[]
["U.","Vul de onderstaande verklaring in."]
[null,"Ik, in naam van de directie, verklaar met betrekking tot het project waarvoor ik een subsidiëring aanvraag, akkoord te zijn met"]
[null,"de aanvraag en ik verbind me ertoe elke wijziging van de gegevens onmiddellijk mee te delen aan het VIPA, waarvan het"]
[null,"adres vermeld staat in het formulierhoofd.",null,null,null,null,null,null,null,null,null,null,null,null,null,null,null,null,null,null,null,null,null,"kies"]
[]
[null,"datum:","dag",null,null,null,null,"maand",null,null,null,null,null,"jaar"]
[]
[null,"voor- en achternaam: "]
[null,"functie:"]
[null,"handtekening van de persoon bevoegd om de aanvrager ",null,null,null,null,null,null,null,null,null,null,null,null,"Handtekening"]
[null,"te vertegenwoordigen voor deze rechtshandeling:\n(dubbelklikken of rechtsklikken met de muis voor digitale handtekening)"]

{"sheet":"PROCEDURE","index":1,"n_rows":58,"n_cols":6,"rows_kept":58,"cut":false,"hidden":true,"merged":[[47,5,49,5]]}
[]
[null,"OVERZICHT","Deze gegevens zullen overgenomen worden in de overzichtslijst","opmerkingen"]
[null,"oproep",3,"nummer van de oproep, hier in procedure invullen",null,"Administratief project begeleider vult in"]
[null,"dossierstatus","aanvraag indienen tot","vul datum in bij dossierstatus, dan past de dossierstatus zich aan",null,"Functioneel adviseur vult in"]
[null,"dossiernummer",null,"dossiernummer bepalen, hier in procedure invullen",null,"Bouwtechnisch adviseur vult in"]
[null,"ontbrekende doc.",null,"hier in procedure invullen",null,"Automatisch overname "]
[null,"voorziening:",{"$f":"AANVRAAG!D39","v":0},null,null,"* indien niet is ingevuld of aanpassing nodig , pas aan in AANVRAAG"]
[null,"gemeente",{"$f":"AANVRAAG!D41","v":0},null,null,"* subsidiebedrag is overgenomen van de evaluatie"]
[null,"HCO nummer",{"$f":"AANVRAAG!D46","v":0}]
[null,"verblijfscapaciteit",{"$f":"AANVRAAG!D56","v":0}]
[null,"e-mail contactpersoon",{"$f":"AANVRAAG!D53","v":0}]
[null,"FA adviseur","kies","hier in procedure invullen"]
[null,"agentschap FA","kies","hier in procedure invullen"]
[null,"BT adviseur","Els Bogaert","hier in procedure invullen"]
[null,"BT supervisie","kies","enkel bij toekomstige of lopende reguliere VIPA-subsidies"]
[null,"project 1",{"$f":"AANVRAAG!D160","v":0},{"$f":"AANVRAAG!D170","v":"kies eerst toekomstige VIPA-subsidie projecten (hierboven)"}]
[null,"project 2",{"$f":"AANVRAAG!D217","v":0},{"$f":"AANVRAAG!D224","v":"kies eerst toekomstige VIPA-subsidie projecten (hierboven)"}]
[null,"project 3",{"$f":"AANVRAAG!D257","v":0},{"$f":"AANVRAAG!D264","v":"kies eerst toekomstige VIPA-subsidie projecten (hierboven)"}]
[null,"project 4",{"$f":"AANVRAAG!D297","v":0},{"$f":"AANVRAAG!D304","v":"kies eerst toekomstige VIPA-subsidie projecten (hierboven)"}]
[null,"project 5",{"$f":"AANVRAAG!D337","v":0},{"$f":"AANVRAAG!D344","v":"kies eerst toekomstige VIPA-subsidie projecten (hierboven)"}]
[null,"project 6",{"$f":"AANVRAAG!D377","v":0},{"$f":"AANVRAAG!D384","v":"kies eerst toekomstige VIPA-subsidie projecten (hierboven)"}]
[null,"subsidiebedrag",{"$f":"EVALUATIE!W423","v":0}," subsidiebedrag is overgenomen van de evaluatie"]
[]
[null,"DOSSIERSTATUS","datum hier invullen, dossierstatus past zich dan aan","opmerkingen",null,"Zet steeds een datum of \"o\" om naar de volgende status over te gaan"]
[null,"aanvraag indienen tot","2020-12-31","hier in procedure invullen (afhankelijk van de oproep)"]
[null,"ontvangen aanvraag",null,"dossier inladen in overzichtslijst"]
[null,"niet ontvankelijk"]
[null,"ontvankelijk (AP)"]
[null,"ontvankelijk (FA)"]
[null,"ontvankelijk (AP+FA)",null,"mail verzenden naar aanvrager"]
[null,"info opgevraagd (FA)"]
[null,"FA evaluatie afgewerkt"]
[null,"info opgevraagd (BT)"]
[null,"overleg FA/BT nodig"]
[null,"BT evaluatie afgewerkt"]
[null,"tot. evaluatie klaar",null,"PDF maken"]
[null,"naar IF"]
[null,"advies IF"]
[null,"naar de minister"]
[null,"handtekening minister"]
[null,"beslissing ",null,"beslissing versturen (sjabloon)"]
[null,"aanvraag uitbetaling"]
[null,"uitbetaling",null,"Financieel adviseur"]
[null,"zelfevaluatie"]
[null,"afgerond"]
[null,"negatieve beslissing",null,"beslissing versturen (verschillende sjablonen)"]
[]
[null,"ONTVANKELIJKHEID",null,"opmerkingen",null,"Het Fonds stuurt binnen dertig dagen nadat het de aanvraag heeft ontvangen, een ontvangstbewijs naar de aanvrager, met de vermelding of de aanvraag al dan niet ontvankelijk is. De ontvankelijkheid houdt in dat de aanvraag tijdig is ingediend en voldoet aan de formele vereisten."]
[null,"kies","alles is ingevuld? (geen fluo meer)"]
[null,"kies","per project: via adres controle op reguliere VIPA-subsidies"]
[null,"kies","controleren op bis/tris,… aanvragen ","via HCO nummer, naam voorziening en aanvrager",null,"Vorige oproepen controleren is belangrijk voor de subsidiebepaling, "]
[null,"kies","subsidiebepaling is ingevuld? (ramingsbedrag)","BT bekijk dit inhoudelijk"]
[null,"kies","plannen in bijlage","BT bekijk dit inhoudelijk"]
[null,"kies","beslissing raad van bestuur in bijlage","FA bekijk dit inhoudelijk"]
[null,"kies","visienota en procesmatige aanpak in bijlage","FA bekijk dit inhoudelijk"]
[null,"kies","aanvraag is ondertekend"]
[null,"kies","controle erkenning en toepassingsgebied"]
[null,{"$f":"AANVRAAG!D56","v":0},"controle capaciteit (kies)","schrijf in deze cel de reden indien aangepast!",null,"Pas de verblijfscapaciteit aan in de aanvraag indien dit niet correct is!"]

{"sheet":"EVALUATIE","index":2,"n_rows":441,"n_cols":27,"rows_kept":441,"cut":false,"hidden":true,"merged":[[302,22,302,23],[303,1,303,21],[303,22,303,23],[345,1,345,23],[335,1,335,23],[285,3,285,23],[295,22,295,23],[304,1,304,21],[296,22,296,23],[297,22,297,23],[298,22,298,23],[299,22,299,23],[288,1,288,23],[293,22,293,23],[306,1,306,21],[306,22,306,23],[307,1,307,21],[305,1,305,21],[305,22,305,23],[292,1,292,23],[301,1,301,21],[291,1,291,23],[284,1,284,2],[279,3,279,23],[212,3,212,13],[212,14,212,23],[201,1,201,23],[257,1,257,23],[258,1,258,23],[247,1,247,21],[247,22,247,23],[237,1,237,21],[240,1,240,21],[241,1,241,21],[264,3,264,23],[265,1,265,2],[265,3,265,23],[262,3,262,23],[263,3,263,23],[262,1,262,2],[263,1,263,2],[264,1,264,2],[259,3,259,23],[235,1,235,21],[235,22,235,23],[119,1,119,23],[122,22,122,23],[124,1,124,21],[209,3,209,23],[187,1,187,21],[183,1,183,21],[178,1,178,23],[179,1,179,21],[187,22,187,23],[188,1,188,21],[183,22,183,23],[188,22,188,23],[121,1,121,23],[189,1,189,21],[127,1,127,21],[131,22,131,23],[132,1,132,21],[195,22,195,23],[203,3,203,23],[176,1,176,23],[186,22,186,23],[197,1,197,2],[80,1,80,21],[81,1,81,21],[92,1,92,2],[252,1,252,23],[246,1,246,21],[246,22,246,23],[240,22,240,23],[241,22,241,23],[242,22,242,23],[243,22,243,23],[242,1,242,21],[243,1,243,21],[237,22,237,23],[238,22,238,23],[209,1,209,2],[130,22,130,23],[112,1,112,23],[124,22,124,23],[122,1,122,21],[249,22,249,23],[250,1,250,21],[250,22,250,23],[214,1,214,23],[171,3,171,23],[83,3,83,23],[98,3,98,13],[98,14,98,23],[87,1,87,23],[81,22,81,23],[96,1,96,22],[90,1,90,2],[94,3,94,23],[84,1,84,2],[47,1,47,23],[48,1,48,23],[53,1,53,23],[60,1,60,23],[50,1,50,2],[51,3,51,23],[55,1,55,23],[29,1,29,23],[30,3,30,23],[31,3,31,23],[36,3,36,23],[42,1,42,23],[37,3,37,23],[20,0,20,23],[170,0,171,0],[138,22,138,23],[139,1,139,23],[135,1,135,21],[41,3,41,13],[52,1,52,23],[64,1,64,23],[177,1,177,23],[141,3,141,23],[144,1,144,23],[145,1,145,23],[21,1,21,23],[93,1,93,2],[93,3,93,23],[34,1,34,23],[66,1,66,23],[63,1,63,23],[56,3,56,23],[67,1,67,21],[40,3,40,21],[40,22,40,23],[49,1,49,23],[57,3,57,23],[0,0,0,15],[0,16,0,18],[1,0,1,21],[2,0,2,15],[2,16,2,22],[3,0,3,15],[3,16,3,22],[14,0,14,23],[10,3,10,23],[11,3,11,23],[4,0,4,21],[5,0,5,23],[6,0,6,21],[7,1,7,2],[9,1,9,2],[9,3,9,23],[10,1,10,2],[11,1,11,2],[13,1,13,23],[12,3,12,4],[7,3,7,23],[8,1,8,2],[8,3,8,23],[12,5,12,15],[12,1,12,2],[300,22,300,23],[289,1,289,23],[286,1,286,23],[287,1,287,23],[293,1,293,21],[294,1,294,23],[342,3,342,23],[301,22,301,23],[302,1,302,21],[295,1,295,21],[296,1,296,21],[297,1,297,21],[298,1,298,21],[299,1,299,21],[300,1,300,21],[304,22,304,23],[103,1,103,23],[76,1,76,21],[12,16,12,23],[208,1,208,2],[196,1,196,23],[199,1,199,23],[200,1,200,23],[420,22,420,23],[347,1,347,23],[349,1,349,23],[221,0,222,0],[88,1,88,23],[82,1,82,23],[221,3,221,23],[164,0,165,0],[357,22,357,23],[227,0,228,0],[149,1,149,2],[149,3,149,23],[150,1,150,2],[150,3,150,23],[204,3,204,23],[227,1,227,2],[227,3,227,23],[223,1,223,23],[222,3,222,23],[239,22,239,23],[228,3,228,23],[221,1,221,2],[91,0,91,21],[85,1,85,23],[450,2,450,21],[435,1,435,5],[435,6,435,9],[435,10,435,23],[431,0,431,23],[427,1,427,23],[428,1,428,23],[429,1,429,23],[433,1,433,23],[436,1,436,10],[436,11,436,12],[436,13,436,23],[437,13,437,23],[437,1,437,10],[437,11,437,12],[434,1,434,23],[430,1,430,23],[432,1,432,23],[439,1,439,10],[439,11,439,12],[439,13,439,23],[440,1,440,10],[440,11,440,12],[440,13,440,23],[310,1,310,23],[248,1,248,21],[248,22,248,23],[228,1,228,2],[215,1,215,23],[218,1,218,23],[220,1,220,23],[137,1,137,21],[151,1,151,2],[182,1,182,21],[182,22,182,23],[260,3,260,23],[274,1,274,23],[282,1,282,23],[284,3,284,23],[285,1,285,2],[197,3,197,23],[198,3,198,23],[191,1,191,21],[191,22,191,23],[192,1,192,21],[192,22,192,23],[193,1,193,21],[193,22,193,23],[58,1,58,23],[59,1,59,23],[54,1,54,23],[65,1,65,21],[71,1,71,21],[78,1,78,21],[107,3,107,23],[98,1,98,2],[97,1,97,2],[97,3,97,21],[97,22,97,23],[100,1,100,23],[94,1,94,2],[80,22,80,23],[89,3,89,23],[90,3,90,23],[86,1,86,23],[99,0,99,23],[75,1,75,21],[75,22,75,23],[61,1,61,23],[78,22,78,23],[79,1,79,21],[79,22,79,23],[22,1,22,23],[27,1,27,23],[28,1,28,23],[46,1,46,23],[40,1,40,2],[38,1,38,2],[38,3,38,23],[45,1,45,23],[41,1,41,2],[26,1,26,23],[33,0,33,23],[41,14,41,23],[23,1,23,23],[43,1,43,23],[44,1,44,23],[32,1,32,23],[37,1,37,2],[39,1,39,22],[35,1,35,2],[35,3,35,23],[36,1,36,2],[24,3,24,23],[25,3,25,23],[95,3,95,23],[95,1,95,2],[134,1,134,21],[134,22,134,23],[101,1,101,23],[102,1,102,23],[92,3,92,23],[65,22,65,23],[77,1,77,21],[67,22,67,23],[68,1,68,21],[68,22,68,23],[70,1,70,21],[73,1,73,21],[72,22,72,23],[69,1,69,21],[69,22,69,23],[74,1,74,21],[70,22,70,23],[71,22,71,23],[74,22,74,23],[72,1,72,21],[77,22,77,23],[106,1,106,23],[151,3,151,23],[140,3,140,23],[154,1,154,2],[153,1,153,22],[152,1,152,2],[156,1,156,23],[155,1,155,2],[155,3,155,13],[205,1,205,23],[202,1,202,23],[184,22,184,23],[185,1,185,21],[194,1,194,21],[194,22,194,23],[195,1,195,21],[104,1,104,23],[133,1,133,21],[127,22,127,23],[128,1,128,21],[128,22,128,23],[129,1,129,21],[129,22,129,23],[133,22,133,23],[136,22,136,23],[108,3,108,23],[107,1,107,2],[126,22,126,23],[115,1,115,23],[113,3,113,23],[116,1,116,23],[109,1,109,23],[130,1,130,21],[131,1,131,21],[132,22,132,23],[123,1,123,23],[125,1,125,21],[114,3,114,23],[110,1,110,23],[111,1,111,23],[244,22,244,23],[245,1,245,21],[245,22,245,23],[251,1,251,21],[222,1,222,2],[231,1,231,23],[253,3,253,23],[213,1,213,23],[164,3,164,23],[208,3,208,23],[284,0,285,0],[290,1,290,23],[277,1,277,23],[254,3,254,23],[255,1,255,23],[278,3,278,23],[283,1,283,23],[216,1,216,23],[217,1,217,23],[234,1,234,23],[236,1,236,23],[261,1,261,23],[224,1,224,23],[226,1,226,23],[229,1,229,23],[230,1,230,23],[232,1,232,23],[233,1,233,23],[225,1,225,23],[238,1,238,21],[239,1,239,21],[219,1,219,23],[251,22,251,23],[256,1,256,23],[249,1,249,21],[281,1,281,23],[266,1,266,22],[267,1,267,2],[267,3,267,21],[267,22,267,23],[268,1,268,2],[273,1,273,23],[270,0,270,23],[271,1,271,23],[278,0,279,0],[272,1,272,23],[280,1,280,23],[275,1,275,23],[268,3,268,13],[268,14,268,23],[254,1,254,2],[259,1,259,2],[260,1,260,2],[278,1,278,2],[279,1,279,2],[269,0,269,23],[276,1,276,23],[307,22,307,23],[308,1,308,21],[323,1,323,2],[323,3,323,23],[315,1,315,23],[312,3,312,23],[311,1,311,2],[312,1,312,2],[317,1,317,2],[318,1,318,2],[313,1,313,23],[314,1,314,23],[317,3,317,23],[308,22,308,23],[309,1,309,21],[309,22,309,23],[311,3,311,23],[316,1,316,23],[318,3,318,23],[319,1,319,23],[322,1,322,2],[322,3,322,23],[320,0,320,21],[321,1,321,2],[356,22,356,23],[354,1,354,21],[354,22,354,23],[369,3,369,23],[370,3,370,23],[371,1,371,23],[368,1,368,23],[343,3,343,23],[336,1,336,2],[337,1,337,2],[342,1,342,2],[344,1,344,23],[337,3,337,23],[338,1,338,23],[340,1,340,23],[341,1,341,23],[357,1,357,21],[350,1,350,23],[351,1,351,21],[351,22,351,23],[378,0,378,20],[380,1,380,23],[381,1,381,23],[385,1,385,23],[375,1,375,2],[367,1,367,21],[367,22,367,23],[374,1,374,23],[369,1,369,2],[370,1,370,2],[373,1,373,23],[372,1,372,23],[207,3,207,23],[210,1,210,22],[211,1,211,2],[211,3,211,21],[211,22,211,23],[212,1,212,2],[363,1,363,21],[363,22,363,23],[364,1,364,21],[362,1,362,21],[328,0,328,23],[327,3,327,13],[327,14,327,23],[330,1,330,23],[331,1,331,23],[339,1,339,23],[358,1,358,21],[358,22,358,23],[359,1,359,21],[348,1,348,23],[334,1,334,23],[355,1,355,21],[355,22,355,23],[356,1,356,21],[336,3,336,23],[346,1,346,23],[352,1,352,23],[353,1,353,21],[353,22,353,23],[332,1,332,23],[333,1,333,23],[325,1,325,22],[326,1,326,2],[326,3,326,21],[326,22,326,23],[327,1,327,2],[329,1,329,23],[413,22,413,23],[399,1,399,2],[398,1,398,23],[390,16,390,20],[400,1,400,21],[375,3,375,23],[376,1,376,2],[378,21,378,23],[377,1,377,23],[376,3,376,23],[405,1,405,21],[400,22,400,23],[392,1,392,15],[393,1,393,15],[394,1,394,15],[408,1,408,21],[408,22,408,23],[403,1,403,21],[403,22,403,23],[409,1,409,21],[406,1,406,21],[406,22,406,23],[409,22,409,23],[405,22,405,23],[425,1,425,23],[419,1,419,21],[419,22,419,23],[424,1,424,23],[410,22,410,23],[411,1,411,21],[411,22,411,23],[418,22,418,23],[418,1,418,21],[422,22,422,23],[415,1,415,21],[415,22,415,23],[416,1,416,21],[416,22,416,23],[417,1,417,21],[421,1,421,21],[421,22,421,23],[414,22,414,23],[414,1,414,21],[420,1,420,21],[417,22,417,23],[412,22,412,23],[412,1,412,21],[423,1,423,23],[407,1,407,21],[410,1,410,21],[392,22,392,23],[393,22,393,23],[392,16,392,20],[393,16,393,20],[394,16,394,20],[407,22,407,23],[401,1,401,21],[396,1,396,15],[404,1,404,2],[401,22,401,23],[396,16,396,20],[394,22,394,23],[395,1,395,23],[396,22,396,23],[19,1,19,23],[15,1,15,23],[51,1,51,2],[56,1,56,2],[57,1,57,2],[83,1,83,2],[76,22,76,23],[84,3,84,23],[137,22,137,23],[30,1,30,2],[31,1,31,2],[24,1,24,2],[25,1,25,2],[62,1,62,23],[89,1,89,2],[73,22,73,23],[50,3,50,23],[120,1,120,23],[108,1,108,2],[113,1,113,2],[114,1,114,2],[117,1,117,23],[118,1,118,23],[105,1,105,23],[426,1,426,23],[413,1,413,21],[386,1,386,23],[387,1,387,23],[422,1,422,21],[169,1,169,23],[379,1,379,23],[397,1,397,23],[402,1,402,23],[404,3,404,23],[382,1,382,23],[383,1,383,23],[384,1,384,23],[388,22,388,23],[399,3,399,23],[389,22,389,23],[390,22,390,23],[390,1,390,15],[173,1,173,23],[174,1,174,23],[175,1,175,23],[204,1,204,2],[203,1,203,2],[321,3,321,23],[135,22,135,23],[125,22,125,23],[126,1,126,21],[198,1,198,2],[206,1,206,2],[206,3,206,23],[136,1,136,21],[142,1,142,23],[143,1,143,23],[146,3,146,23],[147,3,147,23],[141,1,141,2],[140,1,140,2],[146,1,146,2],[147,1,147,2],[165,1,165,2],[170,1,170,2],[171,1,171,2],[160,1,160,23],[161,1,161,23],[162,1,162,23],[163,1,163,23],[165,3,165,23],[170,3,170,23],[164,1,164,2],[190,1,190,21],[190,22,190,23],[181,1,181,21],[167,1,167,23],[168,1,168,23],[148,1,148,23],[138,1,138,21],[189,22,189,23],[172,1,172,23],[180,1,180,23],[179,22,179,23],[155,14,155,23],[154,22,154,23],[154,3,154,21],[181,22,181,23],[166,1,166,23],[157,1,157,23],[158,1,158,23],[159,1,159,23],[184,1,184,21],[186,1,186,21],[185,22,185,23],[152,3,152,23],[388,1,388,15],[253,1,253,2],[389,1,389,15],[244,1,244,21],[207,1,207,2],[391,1,391,15],[391,16,391,20],[389,16,389,20],[391,22,391,23],[388,16,388,20],[359,22,359,23],[360,1,360,21],[360,22,360,23],[361,1,361,21],[361,22,361,23],[364,22,364,23],[365,1,365,21],[365,22,365,23],[366,1,366,21],[366,22,366,23],[362,22,362,23],[324,1,324,2],[324,3,324,23],[343,1,343,2],[16,1,16,2],[16,3,16,12],[16,14,16,19],[16,21,16,23],[17,1,17,23],[18,1,18,2],[18,3,18,12],[18,14,18,19],[18,21,18,23]]}
["Evaluatie investeringssubsidie maatregelen agressiepreventie",null,null,null,null,null,null,null,null,null,null,null,null,null,null,null,"VIA-01-151214",null,null,null,null,null,null,null,null,null,"Steeds 'inhoud inschakelen' aanvinken!"]
[]
["Vlaams Infrastructuurfonds voor Persoonsgebonden",null,null,null,null,null,null,null,null,null,null,null,null,null,null,null,"dossiernummer",null,null,null,null,null,null,null,null,null,"Steeds openen in \"app\" (Excel programma) als je wilt bewerken via "]
["Aangelegenheden (VIPA)",null,null,null,null,null,null,null,null,null,null,null,null,null,null,null,{"$f":"PROCEDURE!C5","v":0},null,null,null,null,null,null,null,null,null,"SharePoint"]
[]
["Identificatiegegevens van de aanvrager en voorziening"]
[]
[null,"aanvrager:",null,{"$f":"AANVRAAG!D25","v":0},null,null,null,null,null,null,null,null,null,null,null,null,null,null,null,null,null,null,null,null,null,null,"indien niet is ingevuld of aanpassing nodig , zie tabblad AANVRAAG"]
[null,"voorziening:",null,{"$f":"AANVRAAG!D39","v":0}]
[null,"gemeente:",null,{"$f":"AANVRAAG!D41","v":0}]
[null,"vorige oproep:",null,{"$f":"AANVRAAG!X37","v":"nee"}]
[null,"vergund door:",null,{"$f":"AANVRAAG!D44","v":"kies"}]
[null,"verblijfscapaciteit:",null,{"$f":"AANVRAAG!D56","v":0},null,{"$f":"PROCEDURE!C58","v":"controle capaciteit (kies)"},null,null,null,null,null,null,null,null,null,null,{"$f":"PROCEDURE!D58","v":"schrijf in deze cel de reden indien aangepast!"},null,null,null,null,null,null,null,null,null,"indien niet is ingevuld of aanpassing nodig , zie tabblad PROCEDURE"]
[]
["Adviseurs"]
[]
[null,"functioneel adviseur",null,{"$f":"PROCEDURE!C12","v":"kies"},null,null,null,null,null,null,null,null,null,null,{"$f":"PROCEDURE!C32","v":"00:00:00"},null,null,null,null,null,null,{"$f":"PROCEDURE!C13","v":"kies"}]
[]
[null,"bouwtechnisch adviseur",null,{"$f":"PROCEDURE!C14","v":"Els Bogaert"},null,null,null,null,null,null,null,null,null,null,{"$f":"PROCEDURE!C35","v":"00:00:00"},null,null,null,null,null,null," (VIPA)"]
[]
["Het beleid, de visie en procesmatige aanpak"]
[]
[null,"Beoordeling van de manier waarop het project past in het beleid en de visie van de aanvrager"]
[null,"Een beoordeling over de functionele aspecten: de manier waarop het project past in het beleid en de visie van de aanvrager"]
[null,"beoordeling:",null,"kies",null,null,null,null,null,null,null,null,null,null,null,null,null,null,null,null,null,null,null,null,null,null,"Klik op het vakje 'kies'     en duid de juiste keuze aan via het pijltje"]
[null,"motivering:"]
[]
[null,"Beoordeling van de procesmatige aanpak",null,null,null,null,null,null,null,null,null,null,null,null,null,null,null,null,null,null,null,null,null,null,null,null,"Wil je een volgende regel, druk Alt + Enter samen "]
[null,"Een beoordeling over de procesmatige aanpak, onder meer op het vlak van gedragenheid van het project, betrokkenheid van gebruikers, "]
[null,"multidisciplinaire aanpak en eventuele samenwerkingsverbanden."]
[null,"beoordeling:",null,"kies"]
[null,"motivering:"]
[]
["Projecten"]
[]
[null,"Project 1:",null,{"$f":"AANVRAAG!D160","v":0}]
[null,"straat en nummer:",null,{"$f":"AANVRAAG!D161","v":0}]
[null,"postnr. en gemeente: ",null,{"$f":"AANVRAAG!D162","v":0}]
[null,"zorgvorm project:",null,{"$f":"AANVRAAG!D163","v":"zorgvorm zoals beschreven in artikel 2. van het besluit (klik voor keuze)"}]
[null,"zijn er toekomstige of lopende VIPA-subsidie nieuwbouw- of uitbreidingsprojecten voor dit gebouw?",null,null,null,null,null,null,null,null,null,null,null,null,null,null,null,null,null,null,null,null,null,{"$f":"AANVRAAG!X164","v":"kies"}]
[null,"aard van investering:",null,{"$f":"AANVRAAG!D170","v":"kies eerst toekomstige VIPA-subsidie projecten (hierboven)"},null,null,null,null,null,null,null,null,null,null,null,null,null,null,null,null,null,null,"conform art. 5."]
[null,"VIPA dossiernummer:",null,{"$f":"AANVRAAG!D169","v":0},null,null,null,null,null,null,null,null,null,null,"vul de meest recente nummers in (reguliere VIPA-subsidies)"]
[]
[null,"Een beschrijving van de preventieve infrastructurele maatregelen"]
[null,"Beschrijving van de aanvrager over de preventieve infrastructurele maatregelen waarvoor de subsidie wordt aangevraagd:"]
[null,{"$f":"AANVRAAG!B174","v":0}]
[]
[null,"Beoordeling over de preventieve maatregelen, de meerwaarde voor de gebruikers en de doelgerichtheid"]
[null,"Beschrijving van de aanvrager over de preventieve infrastructurele maatregelen waarvoor de subsidie wordt aangevraagd:"]
[null,{"$f":"AANVRAAG!B178","v":0}]
[null,"beoordeling:",null,"kies"]
[null,"motivering:"]
[]
[null,"Beoordeling over de kwaliteitsaspecten van het project"]
[null,"Beschrijving van de aanvrager over comfort, privacy, veiligheid, huiselijkheid, duurzaamheid, materiaalkeuze, en vernieuwend karakter:"]
[null,{"$f":"AANVRAAG!B182","v":0}]
[null,"beoordeling:",null,"kies"]
[null,"motivering:"]
[]
[null,"Plannen en/of voorbeelden:"]
[null,"De plannen van het project, met daarbij een aanduiding van de geplande maatregelen ten opzichte van de bestaande situatie:"]
[]
[]
[null,"Kostenraming excl. BTW"]
[]
["1.",{"$f":"AANVRAAG!B196","v":0},null,null,null,null,null,null,null,null,null,null,null,null,null,null,null,null,null,null,null,null,{"$f":"SUM(W68:X82)","v":0}]
[]
[null,{"$f":"AANVRAAG!B198","v":0},null,null,null,null,null,null,null,null,null,null,null,null,null,null,null,null,null,null,null,null,{"$f":"AANVRAAG!W198","v":0}]
[null,{"$f":"AANVRAAG!B199","v":0},null,null,null,null,null,null,null,null,null,null,null,null,null,null,null,null,null,null,null,null,{"$f":"AANVRAAG!W199","v":0}]
[null,{"$f":"AANVRAAG!B200","v":0},null,null,null,null,null,null,null,null,null,null,null,null,null,null,null,null,null,null,null,null,{"$f":"AANVRAAG!W200","v":0}]
[null,{"$f":"AANVRAAG!B201","v":0},null,null,null,null,null,null,null,null,null,null,null,null,null,null,null,null,null,null,null,null,{"$f":"AANVRAAG!W201","v":0}]
[null,{"$f":"AANVRAAG!B202","v":0},null,null,null,null,null,null,null,null,null,null,null,null,null,null,null,null,null,null,null,null,{"$f":"AANVRAAG!W202","v":0}]
[null,{"$f":"AANVRAAG!B203","v":0},null,null,null,null,null,null,null,null,null,null,null,null,null,null,null,null,null,null,null,null,{"$f":"AANVRAAG!W203","v":0}]
[null,{"$f":"AANVRAAG!B204","v":0},null,null,null,null,null,null,null,null,null,null,null,null,null,null,null,null,null,null,null,null,{"$f":"AANVRAAG!W204","v":0}]
[null,{"$f":"AANVRAAG!B205","v":0},null,null,null,null,null,null,null,null,null,null,null,null,null,null,null,null,null,null,null,null,{"$f":"AANVRAAG!W205","v":0}]
[null,{"$f":"AANVRAAG!B206","v":0},null,null,null,null,null,null,null,null,null,null,null,null,null,null,null,null,null,null,null,null,{"$f":"AANVRAAG!W206","v":0}]
[null,{"$f":"AANVRAAG!B207","v":0},null,null,null,null,null,null,null,null,null,null,null,null,null,null,null,null,null,null,null,null,{"$f":"AANVRAAG!W207","v":0}]
[null,{"$f":"AANVRAAG!B208","v":0},null,null,null,null,null,null,null,null,null,null,null,null,null,null,null,null,null,null,null,null,{"$f":"AANVRAAG!W208","v":0}]
[null,{"$f":"AANVRAAG!B209","v":0},null,null,null,null,null,null,null,null,null,null,null,null,null,null,null,null,null,null,null,null,{"$f":"AANVRAAG!W209","v":0}]
[null,{"$f":"AANVRAAG!B210","v":0},null,null,null,null,null,null,null,null,null,null,null,null,null,null,null,null,null,null,null,null,{"$f":"AANVRAAG!W210","v":0}]
[null,{"$f":"AANVRAAG!B211","v":0},null,null,null,null,null,null,null,null,null,null,null,null,null,null,null,null,null,null,null,null,{"$f":"AANVRAAG!W211","v":0}]
[null,{"$f":"AANVRAAG!B212","v":0},null,null,null,null,null,null,null,null,null,null,null,null,null,null,null,null,null,null,null,null,{"$f":"AANVRAAG!W212","v":0}]
[]
[null,"beoordeling:",null,"kies"]
[null,"motivering:",null,"kies"]
[]
[null,"Brandveiligheid"]
[null,"Als de voorgestelde maatregelen een impact hebben op de brandveiligheid: een advies van de bevoegde brandweerdienst of een verslag van de brandweer"]
[null,"dat de aanvrager heeft ondertekend en dat ter kennisgeving is bezorgd aan de bevoegde brandweerdienst."]
[null,"beoordeling:",null,"kies"]
[null,"motivering:",null,"kies"]
[]
[null,"Project 2:",null,{"$f":"AANVRAAG!D217","v":0}]
[null,"straat en nummer:",null,{"$f":"AANVRAAG!D218","v":0}]
[null,"postnr. en gemeente: ",null,{"$f":"AANVRAAG!D219","v":0}]
[null,"zorgvorm project:",null,{"$f":"AANVRAAG!D220","v":"zorgvorm zoals beschreven in artikel 2. van het besluit (klik voor keuze)"}]
[null,"zijn er toekomstige of lopende VIPA-subsidie nieuwbouw- of uitbreidingsprojecten voor dit gebouw?",null,null,null,null,null,null,null,null,null,null,null,null,null,null,null,null,null,null,null,null,null,{"$f":"AANVRAAG!X221","v":"kies"}]
[null,"aard van investering:",null,{"$f":"AANVRAAG!D224","v":"kies eerst toekomstige VIPA-subsidie projecten (hierboven)"},null,null,null,null,null,null,null,null,null,null,null,null,null,null,null,null,null,null,"conform art. 5."]
[null,"VIPA dossiernummer:",null,{"$f":"AANVRAAG!D223","v":0},null,null,null,null,null,null,null,null,null,null,"vul de meest recente nummers in (reguliere VIPA-subsidies)"]
[]
[null,"Een beschrijving van de preventieve infrastructurele maatregelen."]
[null,"Beschrijving van de aanvrager over de preventieve infrastructurele maatregelen waarvoor de subsidie wordt aangevraagd:"]
[null,{"$f":"AANVRAAG!B228","v":0}]
[]
[null,"Beoordeling over de preventieve maatregelen, de meerwaarde voor de gebruikers en de doelgerichtheid."]
[null,"Beschrijving van de aanvrager over de preventieve infrastructurele maatregelen waarvoor de subsidie wordt aangevraagd:"]
[null,{"$f":"AANVRAAG!B232","v":0}]
[null,"beoordeling:",null,"kies"]
[null,"motivering:"]
[]
[null,"Beoordeling over de kwaliteitsaspecten van het project"]
[null,"Beschrijving van de aanvrager over comfort, privacy, veiligheid, huiselijkheid, duurzaamheid, materiaalkeuze, en vernieuwend karakter:"]
[null,{"$f":"AANVRAAG!B236","v":0}]
[null,"beoordeling:",null,"kies"]
[null,"motivering:"]
[]
[null,"Plannen en/of voorbeelden:"]
[null,"De plannen van het project, met daarbij een aanduiding van de geplande maatregelen ten opzichte van de bestaande situatie:"]
[]
[]
[null,"Kostenraming excl. BTW"]
[]
[{"$f":"AANVRAAG!A239","v":"2."},{"$f":"AANVRAAG!B239","v":0},null,null,null,null,null,null,null,null,null,null,null,null,null,null,null,null,null,null,null,null,{"$f":"SUM(W124:X139)","v":0}]
[]
[null,{"$f":"AANVRAAG!B241","v":0},null,null,null,null,null,null,null,null,null,null,null,null,null,null,null,null,null,null,null,null,{"$f":"AANVRAAG!W241","v":0}]
[null,{"$f":"AANVRAAG!B242","v":0},null,null,null,null,null,null,null,null,null,null,null,null,null,null,null,null,null,null,null,null,{"$f":"AANVRAAG!W242","v":0}]
[null,{"$f":"AANVRAAG!B243","v":0},null,null,null,null,null,null,null,null,null,null,null,null,null,null,null,null,null,null,null,null,{"$f":"AANVRAAG!W243","v":0}]
[null,{"$f":"AANVRAAG!B244","v":0},null,null,null,null,null,null,null,null,null,null,null,null,null,null,null,null,null,null,null,null,{"$f":"AANVRAAG!W244","v":0}]
[null,{"$f":"AANVRAAG!B245","v":0},null,null,null,null,null,null,null,null,null,null,null,null,null,null,null,null,null,null,null,null,{"$f":"AANVRAAG!W245","v":0}]
[null,{"$f":"AANVRAAG!B246","v":0},null,null,null,null,null,null,null,null,null,null,null,null,null,null,null,null,null,null,null,null,{"$f":"AANVRAAG!W246","v":0}]
[null,{"$f":"AANVRAAG!B247","v":0},null,null,null,null,null,null,null,null,null,null,null,null,null,null,null,null,null,null,null,null,{"$f":"AANVRAAG!W247","v":0}]
[null,{"$f":"AANVRAAG!B248","v":0},null,null,null,null,null,null,null,null,null,null,null,null,null,null,null,null,null,null,null,null,{"$f":"AANVRAAG!W248","v":0}]
[null,{"$f":"AANVRAAG!B249","v":0},null,null,null,null,null,null,null,null,null,null,null,null,null,null,null,null,null,null,null,null,{"$f":"AANVRAAG!W249","v":0}]
[null,{"$f":"AANVRAAG!B250","v":0},null,null,null,null,null,null,null,null,null,null,null,null,null,null,null,null,null,null,null,null,{"$f":"AANVRAAG!W250","v":0}]
[null,{"$f":"AANVRAAG!B251","v":0},null,null,null,null,null,null,null,null,null,null,null,null,null,null,null,null,null,null,null,null,{"$f":"AANVRAAG!W251","v":0}]
[null,{"$f":"AANVRAAG!B252","v":0},null,null,null,null,null,null,null,null,null,null,null,null,null,null,null,null,null,null,null,null,{"$f":"AANVRAAG!W252","v":0}]
[null,{"$f":"AANVRAAG!B253","v":0},null,null,null,null,null,null,null,null,null,null,null,null,null,null,null,null,null,null,null,null,{"$f":"AANVRAAG!W253","v":0}]
[null,{"$f":"AANVRAAG!B254","v":0},null,null,null,null,null,null,null,null,null,null,null,null,null,null,null,null,null,null,null,null,{"$f":"AANVRAAG!W254","v":0}]
[null,{"$f":"AANVRAAG!B255","v":0},null,null,null,null,null,null,null,null,null,null,null,null,null,null,null,null,null,null,null,null,{"$f":"AANVRAAG!W255","v":0}]
[]
[null,"beoordeling:",null,"kies"]
[null,"motivering:",null,"kies"]
[]
[null,"Brandveiligheid"]
[null,"Als de voorgestelde maatregelen een impact hebben op de brandveiligheid: een advies van de bevoegde brandweerdienst of een verslag van de brandweer"]
[null,"dat de aanvrager heeft ondertekend en dat ter kennisgeving is bezorgd aan de bevoegde brandweerdienst."]
[null,"beoordeling:",null,"kies"]
[null,"motivering:",null,"kies"]
[]
[null,{"$f":"AANVRAAG!B257","v":"Project 3:"},null,{"$f":"AANVRAAG!D257","v":0}]
[null,"straat en nummer:",null,{"$f":"AANVRAAG!D258","v":0}]
[null,"postnr. en gemeente: ",null,{"$f":"AANVRAAG!D259","v":0}]
[null,"zorgvorm project:",null,{"$f":"AANVRAAG!D260","v":"zorgvorm zoals beschreven in artikel 2. van het besluit (klik voor keuze)"}]
[null,"zijn er toekomstige of lopende VIPA-subsidie nieuwbouw- of uitbreidingsprojecten voor dit gebouw?",null,null,null,null,null,null,null,null,null,null,null,null,null,null,null,null,null,null,null,null,null,{"$f":"AANVRAAG!X261","v":"kies"}]
[null,"aard van investering:",null,{"$f":"AANVRAAG!D264","v":"kies eerst toekomstige VIPA-subsidie projecten (hierboven)"},null,null,null,null,null,null,null,null,null,null,null,null,null,null,null,null,null,null,"conform art. 5."]
[null,"VIPA dossiernummer:",null,{"$f":"AANVRAAG!D263","v":0},null,null,null,null,null,null,null,null,null,null,"vul de meest recente nummers in (reguliere VIPA-subsidies)"]
[]
[null,"Een beschrijving van de preventieve infrastructurele maatregelen."]
[null,"Beschrijving van de aanvrager over de preventieve infrastructurele maatregelen waarvoor de subsidie wordt aangevraagd:"]
[null,{"$f":"AANVRAAG!B268","v":0}]
[]
[null,"Beoordeling over de preventieve maatregelen, de meerwaarde voor de gebruikers en de doelgerichtheid."]
[null,"Beschrijving van de aanvrager over de preventieve infrastructurele maatregelen waarvoor de subsidie wordt aangevraagd:"]
[null,{"$f":"AANVRAAG!B272","v":0}]
[null,"beoordeling:",null,"kies"]
[null,"motivering:"]
[]
[null,"Beoordeling over de kwaliteitsaspecten van het project"]
[null,"Beschrijving van de aanvrager over comfort, privacy, veiligheid, huiselijkheid, duurzaamheid, materiaalkeuze, en vernieuwend karakter:"]
[null,{"$f":"AANVRAAG!B276","v":0}]
[null,"beoordeling:",null,"kies"]
[null,"motivering:"]
[]
[null,"Plannen en/of voorbeelden:"]
[null,"De plannen van het project, met daarbij een aanduiding van de geplande maatregelen ten opzichte van de bestaande situatie:"]
[]
[]
[null,"Kostenraming excl. BTW"]
[]
[{"$f":"AANVRAAG!A279","v":"3."},{"$f":"AANVRAAG!B279","v":0},null,null,null,null,null,null,null,null,null,null,null,null,null,null,null,null,null,null,null,null,{"$f":"SUM(W182:X196)","v":0}]
[]
[null,{"$f":"AANVRAAG!B281","v":0},null,null,null,null,null,null,null,null,null,null,null,null,null,null,null,null,null,null,null,null,{"$f":"AANVRAAG!W281","v":0}]
[null,{"$f":"AANVRAAG!B282","v":0},null,null,null,null,null,null,null,null,null,null,null,null,null,null,null,null,null,null,null,null,{"$f":"AANVRAAG!W282","v":0}]
[null,{"$f":"AANVRAAG!B283","v":0},null,null,null,null,null,null,null,null,null,null,null,null,null,null,null,null,null,null,null,null,{"$f":"AANVRAAG!W283","v":0}]
[null,{"$f":"AANVRAAG!B284","v":0},null,null,null,null,null,null,null,null,null,null,null,null,null,null,null,null,null,null,null,null,{"$f":"AANVRAAG!W284","v":0}]
[null,{"$f":"AANVRAAG!B285","v":0},null,null,null,null,null,null,null,null,null,null,null,null,null,null,null,null,null,null,null,null,{"$f":"AANVRAAG!W285","v":0}]
[null,{"$f":"AANVRAAG!B286","v":0},null,null,null,null,null,null,null,null,null,null,null,null,null,null,null,null,null,null,null,null,{"$f":"AANVRAAG!W286","v":0}]
[null,{"$f":"AANVRAAG!B287","v":0},null,null,null,null,null,null,null,null,null,null,null,null,null,null,null,null,null,null,null,null,{"$f":"AANVRAAG!W287","v":0}]
[null,{"$f":"AANVRAAG!B288","v":0},null,null,null,null,null,null,null,null,null,null,null,null,null,null,null,null,null,null,null,null,{"$f":"AANVRAAG!W288","v":0}]
[null,{"$f":"AANVRAAG!B289","v":0},null,null,null,null,null,null,null,null,null,null,null,null,null,null,null,null,null,null,null,null,{"$f":"AANVRAAG!W289","v":0}]
[null,{"$f":"AANVRAAG!B290","v":0},null,null,null,null,null,null,null,null,null,null,null,null,null,null,null,null,null,null,null,null,{"$f":"AANVRAAG!W290","v":0}]
[null,{"$f":"AANVRAAG!B291","v":0},null,null,null,null,null,null,null,null,null,null,null,null,null,null,null,null,null,null,null,null,{"$f":"AANVRAAG!W291","v":0}]
[null,{"$f":"AANVRAAG!B292","v":0},null,null,null,null,null,null,null,null,null,null,null,null,null,null,null,null,null,null,null,null,{"$f":"AANVRAAG!W292","v":0}]
[null,{"$f":"AANVRAAG!B293","v":0},null,null,null,null,null,null,null,null,null,null,null,null,null,null,null,null,null,null,null,null,{"$f":"AANVRAAG!W293","v":0}]
[null,{"$f":"AANVRAAG!B294","v":0},null,null,null,null,null,null,null,null,null,null,null,null,null,null,null,null,null,null,null,null,{"$f":"AANVRAAG!W294","v":0}]
[null,{"$f":"AANVRAAG!B295","v":0},null,null,null,null,null,null,null,null,null,null,null,null,null,null,null,null,null,null,null,null,{"$f":"AANVRAAG!W295","v":0}]
[]
[null,"beoordeling:",null,"kies"]
[null,"motivering:",null,"kies"]
[]
[null,"Brandveiligheid"]
[null,"Als de voorgestelde maatregelen een impact hebben op de brandveiligheid: een advies van de bevoegde brandweerdienst of een verslag van de brandweer"]
[null,"dat de aanvrager heeft ondertekend en dat ter kennisgeving is bezorgd aan de bevoegde brandweerdienst."]
[null,"beoordeling:",null,"kies"]
[null,"motivering:",null,"kies"]
[]
[null,{"$f":"AANVRAAG!B297","v":"Project 4:"},null,{"$f":"AANVRAAG!D297","v":0}]
[null,"straat en nummer:",null,{"$f":"AANVRAAG!D298","v":0}]
[null,"postnr. en gemeente: ",null,{"$f":"AANVRAAG!D299","v":0}]
[null,"zorgvorm project:",null,{"$f":"AANVRAAG!D300","v":"zorgvorm zoals beschreven in artikel 2. van het besluit (klik voor keuze)"}]
[null,"zijn er toekomstige of lopende VIPA-subsidie nieuwbouw- of uitbreidingsprojecten voor dit gebouw?",null,null,null,null,null,null,null,null,null,null,null,null,null,null,null,null,null,null,null,null,null,{"$f":"AANVRAAG!X301","v":"kies"}]
[null,"aard van investering:",null,{"$f":"AANVRAAG!D304","v":"kies eerst toekomstige VIPA-subsidie projecten (hierboven)"},null,null,null,null,null,null,null,null,null,null,null,null,null,null,null,null,null,null,"conform art. 5."]
[null,"VIPA dossiernummer:",null,{"$f":"AANVRAAG!D303","v":0},null,null,null,null,null,null,null,null,null,null,"vul de meest recente nummers in (reguliere VIPA-subsidies)"]
[]
[null,"Een beschrijving van de preventieve infrastructurele maatregelen."]
[null,"Beschrijving van de aanvrager over de preventieve infrastructurele maatregelen waarvoor de subsidie wordt aangevraagd:"]
[null,{"$f":"AANVRAAG!B308","v":0}]
[]
[null,"Beoordeling over de preventieve maatregelen, de meerwaarde voor de gebruikers en de doelgerichtheid."]
[null,"Beschrijving van de aanvrager over de preventieve infrastructurele maatregelen waarvoor de subsidie wordt aangevraagd:"]
[null,{"$f":"AANVRAAG!B312","v":0}]
[null,"beoordeling:",null,"kies"]
[null,"motivering:"]
[]
[null,"Beoordeling over de kwaliteitsaspecten van het project"]
[null,"Beschrijving van de aanvrager over comfort, privacy, veiligheid, huiselijkheid, duurzaamheid, materiaalkeuze, en vernieuwend karakter:"]
[null,{"$f":"AANVRAAG!B316","v":0}]
[null,"beoordeling:",null,"kies"]
[null,"motivering:"]
[]
[null,"Plannen en/of voorbeelden:"]
[null,"De plannen van het project, met daarbij een aanduiding van de geplande maatregelen ten opzichte van de bestaande situatie:"]
[]
[null,"Kostenraming excl. BTW"]
[]
[{"$f":"AANVRAAG!A319","v":"4."},{"$f":"AANVRAAG!B321","v":0},null,null,null,null,null,null,null,null,null,null,null,null,null,null,null,null,null,null,null,null,{"$f":"SUM(W238:X252)","v":0}]
[]
[null,{"$f":"AANVRAAG!B321","v":0},null,null,null,null,null,null,null,null,null,null,null,null,null,null,null,null,null,null,null,null,{"$f":"AANVRAAG!W321","v":0}]
[null,{"$f":"AANVRAAG!B322","v":0},null,null,null,null,null,null,null,null,null,null,null,null,null,null,null,null,null,null,null,null,{"$f":"AANVRAAG!W322","v":0}]
[null,{"$f":"AANVRAAG!B323","v":0},null,null,null,null,null,null,null,null,null,null,null,null,null,null,null,null,null,null,null,null,{"$f":"AANVRAAG!W323","v":0}]
[null,{"$f":"AANVRAAG!B324","v":0},null,null,null,null,null,null,null,null,null,null,null,null,null,null,null,null,null,null,null,null,{"$f":"AANVRAAG!W324","v":0}]
[null,{"$f":"AANVRAAG!B325","v":0},null,null,null,null,null,null,null,null,null,null,null,null,null,null,null,null,null,null,null,null,{"$f":"AANVRAAG!W325","v":0}]
[null,{"$f":"AANVRAAG!B326","v":0},null,null,null,null,null,null,null,null,null,null,null,null,null,null,null,null,null,null,null,null,{"$f":"AANVRAAG!W326","v":0}]
[null,{"$f":"AANVRAAG!B327","v":0},null,null,null,null,null,null,null,null,null,null,null,null,null,null,null,null,null,null,null,null,{"$f":"AANVRAAG!W327","v":0}]
[null,{"$f":"AANVRAAG!B328","v":0},null,null,null,null,null,null,null,null,null,null,null,null,null,null,null,null,null,null,null,null,{"$f":"AANVRAAG!W328","v":0}]
[null,{"$f":"AANVRAAG!B329","v":0},null,null,null,null,null,null,null,null,null,null,null,null,null,null,null,null,null,null,null,null,{"$f":"AANVRAAG!W329","v":0}]
[null,{"$f":"AANVRAAG!B330","v":0},null,null,null,null,null,null,null,null,null,null,null,null,null,null,null,null,null,null,null,null,{"$f":"AANVRAAG!W330","v":0}]
[null,{"$f":"AANVRAAG!B331","v":0},null,null,null,null,null,null,null,null,null,null,null,null,null,null,null,null,null,null,null,null,{"$f":"AANVRAAG!W331","v":0}]
[null,{"$f":"AANVRAAG!B332","v":0},null,null,null,null,null,null,null,null,null,null,null,null,null,null,null,null,null,null,null,null,{"$f":"AANVRAAG!W332","v":0}]
[null,{"$f":"AANVRAAG!B333","v":0},null,null,null,null,null,null,null,null,null,null,null,null,null,null,null,null,null,null,null,null,{"$f":"AANVRAAG!W333","v":0}]
[null,{"$f":"AANVRAAG!B334","v":0},null,null,null,null,null,null,null,null,null,null,null,null,null,null,null,null,null,null,null,null,{"$f":"AANVRAAG!W334","v":0}]
[null,{"$f":"AANVRAAG!B335","v":0},null,null,null,null,null,null,null,null,null,null,null,null,null,null,null,null,null,null,null,null,{"$f":"AANVRAAG!W335","v":0}]
[]
[null,"beoordeling:",null,"kies"]
[null,"motivering:",null,"kies"]
[]
[null,"Brandveiligheid"]
[null,"Als de voorgestelde maatregelen een impact hebben op de brandveiligheid: een advies van de bevoegde brandweerdienst of een verslag van de brandweer"]
[null,"dat de aanvrager heeft ondertekend en dat ter kennisgeving is bezorgd aan de bevoegde brandweerdienst."]
[null,"beoordeling:",null,"kies"]
[null,"motivering:",null,"kies"]
[]
[null,{"$f":"AANVRAAG!B337","v":"Project 5:"},null,{"$f":"AANVRAAG!D337","v":0}]
[null,"straat en nummer:",null,{"$f":"AANVRAAG!D338","v":0}]
[null,"postnr. en gemeente: ",null,{"$f":"AANVRAAG!D339","v":0}]
[null,"zorgvorm project:",null,{"$f":"AANVRAAG!D340","v":"zorgvorm zoals beschreven in artikel 2. van het besluit (klik voor keuze)"}]
[null,"zijn er toekomstige of lopende VIPA-subsidie nieuwbouw- of uitbreidingsprojecten voor dit gebouw?",null,null,null,null,null,null,null,null,null,null,null,null,null,null,null,null,null,null,null,null,null,{"$f":"AANVRAAG!X341","v":"kies"}]
[null,"aard van investering:",null,{"$f":"AANVRAAG!D344","v":"kies eerst toekomstige VIPA-subsidie projecten (hierboven)"},null,null,null,null,null,null,null,null,null,null,null,null,null,null,null,null,null,null,"conform art. 5."]
[null,"VIPA dossiernummer:",null,{"$f":"AANVRAAG!D343","v":0},null,null,null,null,null,null,null,null,null,null,"vul de meest recente nummers in (reguliere VIPA-subsidies)"]
[]
[]
[null,"Een beschrijving van de preventieve infrastructurele maatregelen."]
[null,"Beschrijving van de aanvrager over de preventieve infrastructurele maatregelen waarvoor de subsidie wordt aangevraagd:"]
[null,{"$f":"AANVRAAG!B348","v":0}]
[]
[null,"Beoordeling over de preventieve maatregelen, de meerwaarde voor de gebruikers en de doelgerichtheid."]
[null,"Beschrijving van de aanvrager over de preventieve infrastructurele maatregelen waarvoor de subsidie wordt aangevraagd:"]
[null,{"$f":"AANVRAAG!B352","v":0}]
[null,"beoordeling:",null,"kies"]
[null,"motivering:"]
[]
[null,"Beoordeling over de kwaliteitsaspecten van het project"]
[null,"Beschrijving van de aanvrager over comfort, privacy, veiligheid, huiselijkheid, duurzaamheid, materiaalkeuze, en vernieuwend karakter:"]
[null,{"$f":"AANVRAAG!B356","v":0}]
[null,"beoordeling:",null,"kies"]
[null,"motivering:"]
[]
[null,"Plannen en/of voorbeelden:"]
[null,"De plannen van het project, met daarbij een aanduiding van de geplande maatregelen ten opzichte van de bestaande situatie:"]
[]
[]
[null,"Kostenraming excl. BTW"]
[]
[{"$f":"AANVRAAG!A359","v":"5."},{"$f":"AANVRAAG!B359","v":0},null,null,null,null,null,null,null,null,null,null,null,null,null,null,null,null,null,null,null,null,{"$f":"SUM(W296:X310)","v":0}]
[]
[null,{"$f":"AANVRAAG!B361","v":0},null,null,null,null,null,null,null,null,null,null,null,null,null,null,null,null,null,null,null,null,{"$f":"AANVRAAG!W361","v":0}]
[null,{"$f":"AANVRAAG!B362","v":0},null,null,null,null,null,null,null,null,null,null,null,null,null,null,null,null,null,null,null,null,{"$f":"AANVRAAG!W362","v":0}]
[null,{"$f":"AANVRAAG!B363","v":0},null,null,null,null,null,null,null,null,null,null,null,null,null,null,null,null,null,null,null,null,{"$f":"AANVRAAG!W363","v":0}]
[null,{"$f":"AANVRAAG!B364","v":0},null,null,null,null,null,null,null,null,null,null,null,null,null,null,null,null,null,null,null,null,{"$f":"AANVRAAG!W364","v":0}]
[null,{"$f":"AANVRAAG!B365","v":0},null,null,null,null,null,null,null,null,null,null,null,null,null,null,null,null,null,null,null,null,{"$f":"AANVRAAG!W365","v":0}]
[null,{"$f":"AANVRAAG!B366","v":0},null,null,null,null,null,null,null,null,null,null,null,null,null,null,null,null,null,null,null,null,{"$f":"AANVRAAG!W366","v":0}]
[null,{"$f":"AANVRAAG!B367","v":0},null,null,null,null,null,null,null,null,null,null,null,null,null,null,null,null,null,null,null,null,{"$f":"AANVRAAG!W367","v":0}]
[null,{"$f":"AANVRAAG!B368","v":0},null,null,null,null,null,null,null,null,null,null,null,null,null,null,null,null,null,null,null,null,{"$f":"AANVRAAG!W368","v":0}]
[null,{"$f":"AANVRAAG!B369","v":0},null,null,null,null,null,null,null,null,null,null,null,null,null,null,null,null,null,null,null,null,{"$f":"AANVRAAG!W369","v":0}]
[null,{"$f":"AANVRAAG!B370","v":0},null,null,null,null,null,null,null,null,null,null,null,null,null,null,null,null,null,null,null,null,{"$f":"AANVRAAG!W370","v":0}]
[null,{"$f":"AANVRAAG!B371","v":0},null,null,null,null,null,null,null,null,null,null,null,null,null,null,null,null,null,null,null,null,{"$f":"AANVRAAG!W371","v":0}]
[null,{"$f":"AANVRAAG!B372","v":0},null,null,null,null,null,null,null,null,null,null,null,null,null,null,null,null,null,null,null,null,{"$f":"AANVRAAG!W372","v":0}]
[null,{"$f":"AANVRAAG!B373","v":0},null,null,null,null,null,null,null,null,null,null,null,null,null,null,null,null,null,null,null,null,{"$f":"AANVRAAG!W373","v":0}]
[null,{"$f":"AANVRAAG!B374","v":0},null,null,null,null,null,null,null,null,null,null,null,null,null,null,null,null,null,null,null,null,{"$f":"AANVRAAG!W374","v":0}]
[null,{"$f":"AANVRAAG!B375","v":0},null,null,null,null,null,null,null,null,null,null,null,null,null,null,null,null,null,null,null,null,{"$f":"AANVRAAG!W375","v":0}]
[]
[null,"beoordeling:",null,"kies"]
[null,"motivering:",null,"kies"]
[]
[null,"Brandveiligheid"]
[null,"Als de voorgestelde maatregelen een impact hebben op de brandveiligheid: een advies van de bevoegde brandweerdienst of een verslag van de brandweer"]
[null,"dat de aanvrager heeft ondertekend en dat ter kennisgeving is bezorgd aan de bevoegde brandweerdienst."]
[null,"beoordeling:",null,"kies"]
[null,"motivering:",null,"kies"]
[]
[]
[null,{"$f":"AANVRAAG!B377","v":"Project 6:"},null,{"$f":"AANVRAAG!D377","v":0}]
[null,"straat en nummer:",null,{"$f":"AANVRAAG!D378","v":0}]
[null,"postnr. en gemeente: ",null,{"$f":"AANVRAAG!D379","v":0}]
[null,"zorgvorm project:",null,{"$f":"AANVRAAG!D380","v":"zorgvorm zoals beschreven in artikel 2. van het besluit (klik voor keuze)"}]
[null,"zijn er toekomstige of lopende VIPA-subsidie nieuwbouw- of uitbreidingsprojecten voor dit gebouw?",null,null,null,null,null,null,null,null,null,null,null,null,null,null,null,null,null,null,null,null,null,{"$f":"AANVRAAG!X381","v":"kies"}]
[null,"aard van investering:",null,{"$f":"AANVRAAG!D384","v":"kies eerst toekomstige VIPA-subsidie projecten (hierboven)"},null,null,null,null,null,null,null,null,null,null,null,null,null,null,null,null,null,null,"conform art. 5."]
[null,"VIPA dossiernummer:",null,{"$f":"AANVRAAG!D383","v":0},null,null,null,null,null,null,null,null,null,null,"vul de meest recente nummers in (reguliere VIPA-subsidies)"]
[]
[null,"Een beschrijving van de preventieve infrastructurele maatregelen."]
[null,"Beschrijving van de aanvrager over de preventieve infrastructurele maatregelen waarvoor de subsidie wordt aangevraagd:"]
[null,{"$f":"AANVRAAG!B388","v":0}]
[]
[null,"Beoordeling over de preventieve maatregelen, de meerwaarde voor de gebruikers en de doelgerichtheid."]
[null,"Beschrijving van de aanvrager over de preventieve infrastructurele maatregelen waarvoor de subsidie wordt aangevraagd:"]
[null,{"$f":"AANVRAAG!B392","v":0}]
[null,"beoordeling:",null,"kies"]
[null,"motivering:"]
[]
[null,"Beoordeling over de kwaliteitsaspecten van het project"]
[null,"Beschrijving van de aanvrager over comfort, privacy, veiligheid, huiselijkheid, duurzaamheid, materiaalkeuze, en vernieuwend karakter:"]
[null,{"$f":"AANVRAAG!B396","v":0}]
[null,"beoordeling:",null,"kies"]
[null,"motivering:"]
[]
[null,"Plannen en/of voorbeelden:"]
[null,"De plannen van het project, met daarbij een aanduiding van de geplande maatregelen ten opzichte van de bestaande situatie:"]
[]
[]
[null,"Kostenraming excl. BTW"]
[]
[{"$f":"AANVRAAG!A399","v":"6."},{"$f":"AANVRAAG!B399","v":0},null,null,null,null,null,null,null,null,null,null,null,null,null,null,null,null,null,null,null,null,{"$f":"SUM(W354:X368)","v":0}]
[]
[null,{"$f":"AANVRAAG!B401","v":0},null,null,null,null,null,null,null,null,null,null,null,null,null,null,null,null,null,null,null,null,{"$f":"AANVRAAG!W401","v":0}]
[null,{"$f":"AANVRAAG!B402","v":0},null,null,null,null,null,null,null,null,null,null,null,null,null,null,null,null,null,null,null,null,{"$f":"AANVRAAG!W402","v":0}]
[null,{"$f":"AANVRAAG!B403","v":0},null,null,null,null,null,null,null,null,null,null,null,null,null,null,null,null,null,null,null,null,{"$f":"AANVRAAG!W403","v":0}]
[null,{"$f":"AANVRAAG!B404","v":0},null,null,null,null,null,null,null,null,null,null,null,null,null,null,null,null,null,null,null,null,{"$f":"AANVRAAG!W404","v":0}]
[null,{"$f":"AANVRAAG!B405","v":0},null,null,null,null,null,null,null,null,null,null,null,null,null,null,null,null,null,null,null,null,{"$f":"AANVRAAG!W405","v":0}]
[null,{"$f":"AANVRAAG!B406","v":0},null,null,null,null,null,null,null,null,null,null,null,null,null,null,null,null,null,null,null,null,{"$f":"AANVRAAG!W406","v":0}]
[null,{"$f":"AANVRAAG!B407","v":0},null,null,null,null,null,null,null,null,null,null,null,null,null,null,null,null,null,null,null,null,{"$f":"AANVRAAG!W407","v":0}]
[null,{"$f":"AANVRAAG!B408","v":0},null,null,null,null,null,null,null,null,null,null,null,null,null,null,null,null,null,null,null,null,{"$f":"AANVRAAG!W408","v":0}]
[null,{"$f":"AANVRAAG!B409","v":0},null,null,null,null,null,null,null,null,null,null,null,null,null,null,null,null,null,null,null,null,{"$f":"AANVRAAG!W409","v":0}]
[null,{"$f":"AANVRAAG!B410","v":0},null,null,null,null,null,null,null,null,null,null,null,null,null,null,null,null,null,null,null,null,{"$f":"AANVRAAG!W410","v":0}]
[null,{"$f":"AANVRAAG!B411","v":0},null,null,null,null,null,null,null,null,null,null,null,null,null,null,null,null,null,null,null,null,{"$f":"AANVRAAG!W411","v":0}]
[null,{"$f":"AANVRAAG!B412","v":0},null,null,null,null,null,null,null,null,null,null,null,null,null,null,null,null,null,null,null,null,{"$f":"AANVRAAG!W412","v":0}]
[null,{"$f":"AANVRAAG!B413","v":0},null,null,null,null,null,null,null,null,null,null,null,null,null,null,null,null,null,null,null,null,{"$f":"AANVRAAG!W413","v":0}]
[null,{"$f":"AANVRAAG!B414","v":0},null,null,null,null,null,null,null,null,null,null,null,null,null,null,null,null,null,null,null,null,{"$f":"AANVRAAG!W414","v":0}]
[null,{"$f":"AANVRAAG!B415","v":0},null,null,null,null,null,null,null,null,null,null,null,null,null,null,null,null,null,null,null,null,{"$f":"AANVRAAG!W415","v":0}]
[]
[null,"beoordeling:",null,"kies"]
[null,"motivering:",null,"kies"]
[]
[null,"Brandveiligheid"]
[null,"Als de voorgestelde maatregelen een impact hebben op de brandveiligheid: een advies van de bevoegde brandweerdienst of een verslag van de brandweer"]
[null,"dat de aanvrager heeft ondertekend en dat ter kennisgeving is bezorgd aan de bevoegde brandweerdienst."]
[null,"beoordeling:",null,"kies"]
[null,"motivering:",null,"kies"]
[]
["Subsidiebepaling"]
[]
[null,"Het maximale bedrag van de investeringssubsidie per voorziening is vastgesteld op 175.000 euro. Voor voorzieningen met een "]
[null,"verblijfscapaciteit van 50 of meer wordt dat maximale bedrag van de per voorziening vermeerderd met 2500 euro per verblijfsplaats."]
[null,"Bij een gezamenlijke aanvraag worden de bedragen per voorziening in rekening gebracht."]
[null,"De maximale bedragen gelden per voorziening en kunnen gespreid worden over verschillende projecten of verschillende oproepen."]
[null,"Dit maximale bedrag wordt 10% hoger als de voorziening voor de voorgenomen preventieve infrastructurele maatregelen één of meer "]
[null,"ontwerpstudies van een onafhankelijk studiebureau kan voorleggen."]
[]
[null,"Samenvatting berekening subsidies en ontwerpstudies:"]
[null,"korte beschrijving",null,null,null,null,null,null,null,null,null,null,null,null,null,null,"Subsidie 75%",null,null,null,null,null,"ontwerpkosten?"]
[1,{"$f":"D36","v":0},null,null,null,null,null,null,null,null,null,null,null,null,null,null,{"$f":"0.75*W66","v":0},null,null,null,null,null,{"$f":"AANVRAAG!W422","v":0}]
[2,{"$f":"D93","v":0},null,null,null,null,null,null,null,null,null,null,null,null,null,null,{"$f":"0.75*W123","v":0},null,null,null,null,null,{"$f":"AANVRAAG!W423","v":0}]
[3,{"$f":"D150","v":0},null,null,null,null,null,null,null,null,null,null,null,null,null,null,{"$f":"0.75*W180","v":0},null,null,null,null,null,{"$f":"AANVRAAG!W424","v":0}]
[4,{"$f":"D207","v":0},null,null,null,null,null,null,null,null,null,null,null,null,null,null,{"$f":"0.75*W236","v":0},null,null,null,null,null,{"$f":"AANVRAAG!W425","v":0}]
[5,{"$f":"D263","v":0},null,null,null,null,null,null,null,null,null,null,null,null,null,null,{"$f":"0.75*W294","v":0},null,null,null,null,null,{"$f":"AANVRAAG!W426","v":0}]
[6,{"$f":"D322","v":0},null,null,null,null,null,null,null,null,null,null,null,null,null,null,{"$f":"0.75*W352","v":0},null,null,null,null,null,{"$f":"AANVRAAG!W427","v":0}]
[]
[null,"Som subsidie van alle projecten en ontwerpkosten",null,null,null,null,null,null,null,null,null,null,null,null,null,null,{"$f":"SUM(Q390)+Q391+Q392+Q393+Q394+Q395","v":0},null,null,null,null,null,{"$f":"SUM(W390)+W391+W392+W393+W394+W395","v":0}]
[]
[null,"De gegevens van de voorziening en de capaciteit "]
[null,"medeaanvrager:",null,{"$f":"AANVRAAG!D445","v":0}]
[null,"verblijfscapaciteit (op niveau van de voorziening)",null,null,null,null,null,null,null,null,null,null,null,null,null,null,null,null,null,null,null,null,{"$f":"AANVRAAG!D56","v":0}]
[null,"plafond op basis van capaciteit",null,null,null,null,null,null,null,null,null,null,null,null,null,null,null,null,null,null,null,null,{"$f":"175000+MAX($W$401-49,0)*2500","v":175000}]
[]
[null,"De bedragen bij medeaanvrager: "]
[null,"voorziening:",null,{"$f":"AANVRAAG!D440","v":0}]
[null,"Deel plafond van medeaanvrager ",null,null,null,null,null,null,null,null,null,null,null,null,null,null,null,null,null,null,null,null,{"$f":"AANVRAAG!W446","v":0}]
[null,"Deel plafond naar hoofdaanvrager ",null,null,null,null,null,null,null,null,null,null,null,null,null,null,null,null,null,null,null,null,{"$f":"AANVRAAG!W447","v":0}]
[null,"Plafond na eventuele overheveling",null,null,null,null,null,null,null,null,null,null,null,null,null,null,null,null,null,null,null,null,{"$f":"AANVRAAG!W448","v":175000}]
[]
[null,"De bedragen van de vorige oproepen: "]
[null,"Subsidiebedrag (75% KP) van vorige oproepen (zonder ontwerpkosten)",null,null,null,null,null,null,null,null,null,null,null,null,null,null,null,null,null,null,null,null,{"$f":"AANVRAAG!W451","v":0}]
[null,"Tussenkomst ontwerpkosten vorige oproepen",null,null,null,null,null,null,null,null,null,null,null,null,null,null,null,null,null,null,null,null,{"$f":"AANVRAAG!W452","v":0}]
[null,"Maximaal subsidiebedrag voor huidige oproep na aftrek vorige oproepen",null,null,null,null,null,null,null,null,null,null,null,null,null,null,null,null,null,null,null,null,{"$f":"AANVRAAG!W453","v":175000}]
[]
[null,"Huidige oproep: "]
[null,"Subsidiebedrag huidige aanvraag 75% kostprijs ",null,null,null,null,null,null,null,null,null,null,null,null,null,null,null,null,null,null,null,null,{"$f":"Q397","v":0}]
[null,"geplafonneerd subsidiebedrag ",null,null,null,null,null,null,null,null,null,null,null,null,null,null,null,null,null,null,null,null,{"$f":"MIN(W408,W416,W413)","v":0}]
[null,"som ontwerpkosten huidige aanvraag ",null,null,null,null,null,null,null,null,null,null,null,null,null,null,null,null,null,null,null,null,{"$f":"W397","v":0}]
[null,"Max. tussenkomst ontwerpkosten (o.b.v. 10% van de max. subsidie o.b.v. capaciteit voorziening)",null,null,null,null,null,null,null,null,null,null,null,null,null,null,null,null,null,null,null,null,{"$f":"((W411+W417)*0.1)-W412","v":0}]
[null,"geplafonneerde ontwerpkosten (ook minwaarde)",null,null,null,null,null,null,null,null,null,null,null,null,null,null,null,null,null,null,null,null,{"$f":"MIN(W419,W418)","v":0}]
[null,"geplafonneerde ontwerpkosten ",null,null,null,null,null,null,null,null,null,null,null,null,null,null,null,null,null,null,null,null,{"$f":"MAX(0,W420)","v":0}]
[]
[null,"Maximale subsidie voor huidige aanvraag ",null,null,null,null,null,null,null,null,null,null,null,null,null,null,null,null,null,null,null,null,{"$f":"MAX(W421+W417,0)","v":0}]
[]
[null,"De betaling van de subsidies gebeurt in één schijf, op basis van de voorlegging van o.m. alle facturen. Er wordt bij eindafrekening een "]
[null,"aanpassing van het subsidiebedrag voorzien, indien de gemaakte kosten lager liggen dan voorzien."]
[]
[null,"De gesubsidieerde onroerende en roerende goederen worden als een goed huisvader beheerd en onderhouden. Volgend uit het VIPA decreet "]
[null,"zullen onroerende investeringen minimaal 25 jaar in gebruik gehouden dienen te worden. Roerende investeringen dienen minimaal "]
[null,"5 jaar in gebruik gehouden te worden. Indien hier niet aan wordt voldaan, zullen de subsidies worden teruggevorderd."]
[]
["Conclusie en eindadvies"]
[]
[null,"kies"]
[]
[null,"Het subsidiebedrag bedraagt:",null,null,null,null,{"$f":"W423","v":0},null,null,null,"euro (excl. BTW)"]
[]
[null,"Handtekening",null,null,null,null,null,null,null,null,null,null,null,"Handtekening"]
[]
[null,{"$f":"D17","v":"kies"},null,null,null,null,null,null,null,null,null,null,null,{"$f":"D19","v":"Els Bogaert"}]
[null,"Functioneel adviseur",null,null,null,null,null,null,null,null,null,null,null,"Bouwtechnisch adviseur"]

{"sheet":"BRON","index":3,"n_rows":132,"n_cols":3,"rows_kept":132,"cut":false,"hidden":true,"merged":[[132,1,135,1]]}
[]
["gegevensnaam","invulling"]
[]
[]
["kies","keuze"]
[]
["ja","keuze"]
[null,"nieuwbouw"]
[null,"uitbreiding"]
[null,"verbouwing"]
[]
["nee","geen"]
[]
["keuze","kies eerst toekomstige VIPA-subsidie projecten (hierboven)"]
[]
["Nieuwbouw","1 buiteninrichting (enige optie)"]
[]
["Uitbreiding","1 buiteninrichting (enige optie)"]
[]
["Verbouwing","1 buiteninrichting "]
[null,"2 herinrichting leefruimten/ kamers"]
[null,"3 zorgtechnologie"]
[null,"4 herinrichting specifieke ruimten"]
[]
["geen","1 buiteninrichting "]
[null,"2 herinrichting leefruimten/ kamers"]
[null,"3 zorgtechnologie"]
[null,"4 herinrichting specifieke ruimten"]
[]
["zorgvorm","zorgvorm zoals beschreven in artikel 2. van het besluit (klik voor keuze)"]
[null,"1. PH multifunctioneel centrum             ","VAPH-erkende MFC's of Opgroeien"]
[null,"2. PH vergunde zorgaanbieder n-RTH geïnterneerden      ","VAPH"]
[null,"3. PH unit voor geïnterneerden        ","VAPH"]
[null,"4. BJB organisatie voor bijzondere jeugdzorg ","Opgroeien"]
[null,"5. BJB centrum voor integrale gezinszorg     ","Opgroeien"]
[null,"6. BJB onthaal-, oriëntatie- en observatiecentra         ","Opgroeien"]
[null,"7. PZH proefprojecten forensische K-bedden      ","Z&G"]
[null,"8. PZH K-dienst   ","Z&G"]
[null,"9. PZH de (semi)residentiële revalidatiecentra      ","Z&G"]
[]
["kies1","kies"]
[null,"ja"]
[null,"nee"]
[]
["kies2","kies"]
[null,"ja"]
[null,"nee"]
[null,"n.v.t"]
[]
["entiteit","kies"]
[null,"Opgroeien "]
[null,"Vlaams Agentschap voor Personen met een Handicap (VAPH)"]
[null,"Opgroeien en Vlaams Agentschap voor Personen met een Handicap (VAPH)"]
[null,"Vlaams Agentschap Zorg en Gezondheid (Z&G)"]
[]
["sector","kies"]
[null,"Opgroeien "]
[null,"Z&G"]
[null,"VAPH"]
[]
["Brand","kies"]
[null,"De voorgestelde maatregelen hebben geen impact op de brandveiligheid."]
[null,"De voorgestelde maatregelen hebben een impact op de brandveiligheid."]
[null,"n.v.t"]
[null,"Deze infrastructurele maatregel komt niet in aanmerking voor deze investeringssubsidie."]
[]
[]
["kostenraming","kies"]
[null,"De voorgestelde raming is voldoende uitgewerkt. "]
[null,"De voorgestelde raming is onvoldoende uitgewerkt. "]
[null,"n.v.t"]
[null,"Deze infrastructurele maatregel komt niet in aanmerking voor deze investeringssubsidie."]
[null,"Sommige kosten komen niet in aanmerking en worden in mindering gebracht"]
[]
["beoordeling","kies"]
[null,"Gunstig"]
[null,"Gunstig met de volgende aanbevelingen:"]
[null,"Gunstig onder de volgende voorwaarden: "]
[null,"Gunstig onder de volgende voorwaarden en aanbevelingen:"]
[null,"Ongunstig"]
[null,"n.v.t"]
[null,"Deze infrastructurele maatregel komt niet in aanmerking voor deze investeringssubsidie."]
[]
[]
["Bouwtechnische ","kies"]
[null,"n.v.t"]
[null,"Els Bogaert"]
[null,"Christine De Racker"]
[null,"Thomas Feys"]
[null,"Hans Peeters"]
[null,"Isabelle Terrie"]
[null,"Jolien Vervloet"]
[]
["Functionele","kies"]
[null,"n.v.t"]
[null,"Sharon Van Audenhove"]
[null,"Greet Van Humbeeck "]
[null,"Nadine Frison"]
[null,"Dorien Willems"]
[]
["conclusie","kies"]
[null,"Gunstig"]
[null,"Gunstig, we adviseren om de aanbevelingen geformuleerd in het verslag op te volgen."]
[null,"Gunstig onder de voorwaarde geformuleerd in het verslag."]
[null,"Gunstig onder de voorwaarde geformuleerd in het verslag, we adviseren om de aanbevelingen op te volgen."]
[null,"Ongunstig, er wordt geoordeeld dat deze aanvraag niet in aanmerking komt voor subsidiëring."]
[]
[]
["GES","kies"]
[null,"Er zijn geen GES plaatsen"]
[null,"Er zijn GES-klanten maar geen GES+-klanten. (VAPH)"]
[null,"Er zijn GES+-klanten maar geen GES-klanten. (Opgroeien)"]
[null,"Er zijn GES-klanten en GES+-klanten. (Opgroeien en VAPH)"]
[]
["cap","controle capaciteit (kies)"]
[null,"Deze capaciteit komt overeen met de erkenning"]
[null,"Deze capaciteit is aangepast omdat:"]
[]
["genotsrecht","genotsrecht (kies)"]
[null,"Eigendom"]
[null,"Recht van opstal"]
[null,"Erfpacht"]
[null,"huurovereenkomst "]
[null,"Compromis "]
[]
[]
["Lopende VIPA dossiertype","keuze"]
[null,"verbouwing"]
[null,"nieuwbouw "]
[null,"uitbreiding "]
[]
["Handtekening"]